Workbook

Sheet раскл3-7
C2: Меню-раскладка к примерному 10-дневному меню
C3: для организации питания детей в дошкольных образовательных учреждениях
C4: от 3-7 лет
A5: День 1 - ый
A6: Прием пищи | C6: Выход блюда | D6: Кол - во | E6: Кол - во | F6: Пищевые вещества (г) | I6: Энергетическая | J6: Витамин | K6: № рецептуры
A7: Наименование блюд | D7: (в гр ) | E7: (в гр ) | I7: ценность
D8: брутто | E8: нетто | F8: белки | G8: жиры | H8: угл-ды | I8: Ккал | J8: С
B9: ЗАВТРАК
A10: Каша манная молочная с маслом | C10: 200/5 | F10: 10.00 | G10: 10.00 | H10: 24.50 | I10: 228.00 | J10: 0.22 | K10: ТТК №4
B11: Крупа манная | D11: 20.00 | E11: 20.00
B12: Молоко | D12: 100.00 | E12: 100.00
B13: вода | D13: 76.00 | E13: 76.00
B14: сахар | D14: 3.00 | E14: 3.00
B15: Соль | D15: 1.50 | E15: 1.50
B16: Масло сливочное | D16: 5.00 | E16: 5.00
A17: Чай с сахаром | C17: 180/5 | F17: 0.06 | G17: 0.02 | H17: 4.99 | I17: 20.38 | J17: 0.03 | K17: № 411 Дели2016
B18: Заварка | D18: 0.3 | E18: 0.3
B19: сахар | D19: 5 | E19: 5
B20: Вода | D20: 180 | E20: 180
A21: Бутерброд с маслом сливочным | C21: 30/5 | F21: 2.30 | G21: 4.50 | H21: 15.40 | I21: 111.00 | K21: №1 Дели2010
B22: Батон нарезной | D22: 30.00 | E22: 30.00
B23: Масло сливочное | D23: 5.00 | E23: 5.00
A24: Итого: | C24: 425 | F24: 12.36 | G24: 14.52 | H24: 44.89 | I24: 359.38 | J24: 0.25
A25: Сок | C25: 180 | D25: 180 | E25: 180 | F25: 0.60 | G25: 0.06 | H25: 22.00 | I25: 90.90 | J25: 5.00 | K25: №418Дели2016
A26: абрикосовый
A27: Итого: | C27: 180 | F27: 0.60 | G27: 0.06 | H27: 22.00 | I27: 90.90 | J27: 5.00
C28: 605 | F28: 12.96 | G28: 14.58 | H28: 66.89 | I28: 450.28
B29: ОБЕД
A30: Салат из капусты с яблоками | C30: 50 | F30: 1.00 | G30: 2.30 | H30: 5.00 | I30: 45.00 | J30: 9.50 | K30: №7 Партнер 2014
B31: Капуста свежая | D31: 66.25 | E31: 53
B32: масса стертой капусты | E32: 33
B33: Яблоки | D33: 19 | E33: 14
B34: Сахар | D34: 1 | E34: 1
B35: Масло растительное | D35: 1.5 | E35: 1.5
B36: соль | D36: 0.6 | E36: 0.6
A37: Рассольник ленинградский с курицей, со сметаной | C37: 200/15/5 | F37: 4.56 | G37: 7.50 | H37: 12.64 | I37: 136.30 | J37: 5.37 | K37: №82 Дели 2016
B38: цыплята | D38: 33.85 | E38: 22
B39: Картофель | D39: 79.80 | E39: 60.00
B40: Крупа перловая | D40: 8.00 | E40: 8.00
B41: Морковь | D41: 10.00 | E41: 8.00
B42: Лук репчатый | D42: 4.76 | E42: 4.00
B43: Масло растительное | D43: 3.00 | E43: 3.00
B44: Огурцы соленые | D44: 21.84 | E44: 12.00
B45: Сметана | D45: 5.00 | E45: 5.00
B46: Соль | D46: 1.00 | E46: 1.00
B47: Вода | D47: 152.00 | E47: 152.00
A48: Тефтели из говядины с соусом томатным | C48: 70/10 | F48: 6.2 | G48: 6.5 | H48: 5 | I48: 103 | J48: 0.46 | K48: ТТК № 1152 от 09.10.2020 и №364 С-Петербург 2008
B49: фарш из говядины | D49: 48 | E49: 48
B50: Хлеб пшеничный 1с | D50: 6 | E50: 6
B51: Вода | D51: 6 | E51: 6
B52: Лук репчатый | D52: 14.28 | E52: 12
B53: Крупа манная | D53: 3 | E53: 3
B54: Соль | D54: 0.5 | E54: 0.5
B55: масса полуфабриката | E55: 74
B56: Масло растительное | D56: 2 | E56: 2
B57: соус томатный | E57: 10.0
B58: вода | D58: 9.0 | E58: 9.0
B59: Масло растительное | D59: 0.4 | E59: 0.4
B60: Мука пшеничная | D60: 0.4 | E60: 0.4
B61: морковь | D61: 0.8 | E61: 0.6
B62: Лук репчатый | D62: 0.3 | E62: 0.2
B63: Томат-паста | D63: 1.0 | E63: 1.0
B64: Масло растительное | D64: 0.2 | E64: 0.2
B65: соль | D65: 0.1 | E65: 0.1
B66: сахар | D66: 0.2 | E66: 0.2
A67: Макароны отварные | C67: 130 | F67: 4.80 | G67: 3.60 | H67: 29.40 | I67: 169.20 | K67: №218 Дели 2016
B68: макаронные изделия | D68: 45.50 | E68: 45.50
B69: Масло сливочное | D69: 2.60 | E69: 2.60
B70: Соль | D70: 0.70 | E70: 0.70
A71: Компот из сухофруктов | C71: 180 | F71: 0.7 | G71: 0.0 | H71: 18.0 | I71: 75 | J71: 0.13 | K71: №394, Дели 2016
B72: сухофрукты | D72: 18.36 | E72: 18.00
B73: вода | D73: 182.00 | E73: 182.00
B74: Сахар | D74: 5.00 | E74: 5.00
A75: Хлеб сельский | C75: 37.5 | D75: 37.50 | E75: 37.50 | F75: 1.8 | G75: 0.4 | H75: 18 | I75: 82.5
A76: Итого: | C76: 697.5 | F76: 19.06 | G76: 20.34 | H76: 88.04 | I76: 611.20 | J76: 15.46
B77: ПОЛДНИК
A78: Булочка Домашняя | C78: 50 | F78: 4.90 | G78: 5.00 | H78: 28.00 | I78: 177.00 | J78: 0.00 | K78: №258 Партнер г. Уфа 2014
B79: Мука пшеничная | D79: 34.00 | E79: 34.00
B80: Сахар | D80: 7.00 | E80: 7.00
B81: вода | D81: 14.00 | E81: 14.00
B82: Масло растительное | D82: 7.00 | E82: 7.00
B83: Дрожжи сухие | D83: 0.20 | E83: 0.20
B84: Соль | D84: 0.30 | E84: 0.30
B85: Яйцо | D85: 1.00 | E85: 1.00
B86: Масса полуфабриката | E86: 60.50
B87: Масло растительное | D87: 0.20 | E87: 0.20
A88: Катык | C88: 120 | F88: 3.77 | G88: 3 | H88: 5 | I88: 62.1 | J88: 0.84 | K88: №401Дели2010
B89: катык | D89: 123.60 | E89: 120.00
A90: Рагу с курицей | C90: 40/120 | F90: 6.00 | G90: 10.00 | H90: 16.00 | I90: 178.00 | J90: 20.40 | K90: ТТК №63
B91: цыплята | D91: 86.12 | E91: 56.00
B92: Картофель | D92: 117.04 | E92: 88.00
B93: Морковь | D93: 14.00 | E93: 11.20
B94: Соль | D94: 0.50 | E94: 0.50
B95: вода | D95: 32.00 | E95: 32.00
B96: Масло растительное | D96: 4.00 | E96: 4.00
B97: Мука пшеничная | D97: 2.00 | E97: 2.00
B98: сахар | D98: 0.38 | E98: 0.38
A99: Чай фруктовый | C99: 180/7 | F99: 0.18 | G99: 0.09 | H99: 17.00 | I99: 69.50 | K99: ТТК №56
B100: Заварка | D100: 0.3 | E100: 0.3
B101: урюк | D101: 7.2 | E101: 7.2
B102: сахар | D102: 7 | E102: 7
B103: Вода | D103: 180 | E103: 180
A104: Хлеб пшеничный 1с | C104: 23 | D104: 23.00 | E104: 23.00 | F104: 1.80 | G104: 0.23 | H104: 11.30 | I104: 54.50 | J104: 0.00
A105: Итого: | C105: 540 | F105: 16.65 | G105: 18.32 | H105: 77.30 | I105: 541.10 | J105: 21.24
A106: ВСЕГО: | C106: 1842.5 | F106: 48.67 | G106: 53.24 | H106: 232.23 | I106: 1602.58 | J106: 41.95
A108: День 2- ой
A109: Прием пищи | C109: Выход блюда | D109: Кол - во | E109: Кол - во | F109: Пищевые вещества (г) | I109: Энергетическая | J109: Витамин | K109: № рецептуры
A110: Наименование блюд | D110: (в гр ) | E110: (в гр ) | I110: ценность
D111: брутто | E111: нетто | F111: белки | G111: жиры | H111: угл-ды | I111: Ккал | J111: С
B112: ЗАВТРАК
A113: Каша "Дружба" молочная с маслом | C113: 200/5 | F113: 5.20 | G113: 5.80 | H113: 25.20 | I113: 173.80 | J113: 0.21 | K113: ТТК №7
B114: Крупа рисовая | D114: 15.00 | E114: 15.00
B115: Крупа пшенная | D115: 11.00 | E115: 11.00
B116: Молоко | D116: 86.00 | E116: 86.00
B117: Вода | D117: 86.00 | E117: 86.00
B118: Сахар | D118: 1.00 | E118: 1.00
B119: Соль | D119: 1.00 | E119: 1.00
B120: Масло сливочное | D120: 5.00 | E120: 5.00
A121: Какао с молоком | C121: 180 | F121: 2.42 | G121: 2.58 | H121: 13.61 | I121: 87.30 | J121: 0.39 | K121: №272 Парнер г. Уфа 2014
B122: Какао-порошок | D122: 1.50 | E122: 1.50
B123: Сахар | D123: 8.00 | E123: 8.00
B124: Молоко | D124: 90.00 | E124: 90.00
B125: Вода | D125: 100.00 | E125: 100.00
A126: Бутерброд с сыром, маслом | C126: 30/7/3 | F126: 4.80 | G126: 7.20 | H126: 15.40 | I126: 146.00 | J126: 0.19 | K126: №3 Дели2010
B127: Батон нарезной | D127: 30.00 | E127: 30.00
B128: Сыр | D128: 7.14 | E128: 7.00
B129: Масло сливочное | D129: 3.00 | E129: 3.00
A130: Итого: | C130: 425 | F130: 12.42 | G130: 15.58 | H130: 54.21 | I130: 407.10 | J130: 0.80
A131: Фрукты свежие | C131: 100 | D131: 114 | E131: 100 | F131: 1.00 | G131: 0.00 | H131: 8.10 | I131: 36.40 | J131: 60.00 | K131: № 368 Дели 2010
A132: апельсин
A133: Итого: | C133: 100 | F133: 1.00 | G133: 0.00 | H133: 8.10 | I133: 36.40 | J133: 60.00
C134: 525 | F134: 13.42 | G134: 15.58 | H134: 62.31 | I134: 443.50 | J134: 60.80
B135: ОБЕД
A136: Салат из свеклы | C136: 50 | F136: 0.60 | G136: 2.50 | H136: 4.20 | I136: 42.00 | J136: 1.00 | K136: №34, Дели2016
B137: Свекла | D137: 64.60 | E137: 47.50
B138: Масло растительное | D138: 2.50 | E138: 2.50
A139: Суп картофельный с клецками с мясными фрикадельками | C139: 200/15 | F139: 3.60 | G139: 7.80 | H139: 25.60 | I139: 187.00 | K139: №38 Пермь2001
B140: Фарш из говядины | D140: 17.1 | E140: 17.1
B141: Лук репчатый | D141: 1.79 | E141: 1.5
B142: Яйцо | D142: 1.5 | E142: 1.5
B143: Вода для фарша | D143: 1.7 | E143: 1.7
B144: Масса полуфабриката | E144: 20.1
B145: Картофель | D145: 53.2 | E145: 40
B146: Лук репчатый | D146: 9.52 | E146: 8
B147: Морковь | D147: 10 | E147: 8
B148: Масло растительное | D148: 1.7 | E148: 1.7
B149: Соль | D149: 1 | E149: 1
B150: вода | D150: 152 | E150: 152
B151: клецки | E151: 25
B152: Мука пшеничная | D152: 8.30 | E152: 8.30
B153: Яйцо | D153: 2.08 | E153: 2.08
B154: Масло сливочное | D154: 1.00 | E154: 1.00
B155: вода | D155: 12.50 | E155: 12.50
B156: масса теста | E156: 23.40
A157: Биточки рубленые из рыбы | C157: 70 | F157: 9.75 | G157: 7.80 | H157: 6.15 | I157: 133.80 | K157: ТТК №3Д
B158: Фарш из минтая | D158: 52.50 | E158: 52.50
B159: Яйцо | D159: 10.50 | E159: 10.50
B160: крупа манная | D160: 1.75 | E160: 1.75
B161: Лук репчатый | D161: 15.50 | E161: 13.00
B162: вода | D162: 5.30 | E162: 5.30
B163: Соль | D163: 0.50 | E163: 0.50
B164: сухари панировочные | D164: 5.00 | E164: 5.00
B165: Масло растительное | D165: 1.50 | E165: 1.50
B166: Сахар | D166: 0.20 | E166: 0.20
B167: Масса полуфабриката | E167: 83.00
A168: Пюре Картофельное | C168: 130 | F168: 3.70 | G168: 4.44 | H168: 25.00 | I168: 155.00 | J168: 9.00 | K168: №137 Партнер 2014
B169: Картофель | D169: 148.43 | E169: 111.60
B170: Молоко | D170: 20.50 | E170: 19.50
B171: Масло сливочное | D171: 3.00 | E171: 3.00
B172: Соль | D172: 1.00 | E172: 1.00
A173: Компот из свежих яблок | C173: 180 | F173: 0.10 | G173: 0.10 | H173: 11.80 | I173: 48.50 | J173: 1.20 | K173: № 390 Дели 2016
B174: яблоки | D174: 40.8 | E174: 36.0
B175: вода | D175: 155.0 | E175: 155.0
B176: сахар | D176: 5.0 | E176: 5.0
A177: Хлеб сельский | C177: 37.5 | D177: 37.50 | E177: 37.50 | F177: 1.8 | G177: 0.4 | H177: 18 | I177: 82.5
A178: Итого: | C178: 682.5 | F178: 19.55 | G178: 23.04 | H178: 90.75 | I178: 648.80 | J178: 11.20
B179: ПОЛДНИК
A180: Кондитерские изделия | C180: 10 | F180: 3.00 | G180: 3.00 | H180: 16.00 | I180: 103.00
A181: крекер | D181: 10.00 | E181: 10.00
A182: Молоко кипяченое | C182: 120 | F182: 3.40 | G182: 3.00 | H182: 5.70 | I182: 63.40 | J182: 0.43 | K182: №419 Дели2016
B183: молоко | D183: 126.46 | E183: 120.00
A184: Салат из моркови | C184: 50 | F184: 0.75 | G184: 0.06 | H184: 8.50 | I184: 37.00 | J184: 1.90 | K184: №42 Дели2016г
B185: Морковь | D185: 62.5 | E185: 50
B186: Сахар | D186: 0.5 | E186: 0.5
A187: Пудинг из творога с рисом с повидлом | C187: 150 | F187: 7.50 | G187: 12.00 | H187: 26.00 | I187: 242.00 | J187: 0.23 | K187: № 250 Дели 2016
B188: Творог | D188: 98.8 | E188: 97.5
B189: Крупа рисовая | D189: 18 | E189: 18
B190: Сахар | D190: 9 | E190: 9
B191: Яйцо | D191: 7.8 | E191: 7.8
B192: Масло сливочное | D192: 3.9 | E192: 3.9
B193: Сметана | D193: 3.9 | E193: 3.9
B194: Масса полуфабриката | E194: 153.4
B195: Повидло фруктовое | D195: 20 | E195: 20
A196: Чай с сахаром и лимоном | C196: 180/5/5 | F196: 0.12 | G196: 0.01 | H196: 10.20 | I196: 41.40 | J196: 2.85 | K196: №393Дели2010
B197: Заварка | D197: 0.35 | E197: 0.35
B198: Сахар | D198: 5 | E198: 5
B199: лимон | D199: 5.1 | E199: 5
B200: Вода | D200: 180.0 | E200: 180.0
A201: Хлеб пшеничный 1с | C201: 23 | D201: 23.00 | E201: 23.00 | F201: 1.80 | G201: 0.23 | H201: 11.30 | I201: 54.50 | J201: 0.00
A202: Итого: | C202: 543 | F202: 16.57 | G202: 18.30 | H202: 77.70 | I202: 541.30 | J202: 5.41
... 750 more rows

Sheet 1-3 лет Послед
A1: "Согласовано" | E1: "Утверждаю"
A2: ________________________ | E2: Заместитель генерального директора по организации питания АО "Департамент продовольствия и социального питания г. Казани"
A3: __________________________ | E3: __________________А.К. Агапова
E4: __________________2022г
C5: Примерное 10-дневное меню
C6: для организации питания детей в дошкольных образовательных учреждениях
C7: от 1-3 лет с 7-12 часовым пребыванием
A8: День 1 - ый
A9: Прием пищи | C9: Выход блюда | D9: Пищевые вещества (г) | G9: Энергетическая | H9: № рецептуры
A10: Наименование блюд | G10: ценность
D11: белки | E11: жиры | F11: угл-ды | G11: Ккал
B12: ЗАВТРАК
A13: Каша манная молочная с маслом | C13: 150/5 | D13: 7.50 | E13: 7.50 | F13: 18.40 | G13: 171.10 | H13: ТТК №4
A14: Чай с сахаром | C14: 160/4 | D14: 0.05 | E14: 0.01 | F14: 4.42 | G14: 18.00 | H14: № 411 Дели2016
A15: Бутерброд с маслом сливочным | C15: 25/5 | D15: 1.9 | E15: 4.4 | F15: 13 | G15: 99 | H15: №1 Дели2010
A16: Итого: | C16: 350 | D16: 9.45 | E16: 11.91 | F16: 35.82 | G16: 288.10
A17: Сок | C17: 125 | D17: 0.50 | E17: 0.30 | F17: 13.00 | G17: 51.90 | H17: №399Дели2010
A18: персиковый
A19: Итого: | C19: 125 | D19: 0.50 | E19: 0.30 | F19: 13.00 | G19: 51.90
C20: 474 | D20: 9.95 | E20: 12.21 | F20: 48.82 | G20: 340.00
B21: ОБЕД
A22: Салат из капусты с яблоками | C22: 30 | D22: 0.60 | E22: 1.38 | F22: 3.00 | G22: 26.80 | H22: №7 Партнер 2014
A23: Рассольник ленинградский с курицей, со сметаной | C23: 150/10/5 | D23: 4 | E23: 6 | F23: 6.3 | G23: 93 | H23: №82 Дели 2016
A24: Тефтели из говядины с соусом томатным | C24: 50/5 | D24: 4.4 | E24: 4.6 | F24: 3.5 | G24: 73 | H24: ТТК № 1152 от 09.10.2020 и №364 С-Петербург 2008
A25: Макароны отварные | C25: 110 | D25: 4.10 | E25: 3.00 | F25: 25.00 | G25: 143.40 | H25: №218 Дели 2016
A26: Компот из сухофруктов | C26: 150 | D26: 0.60 | E26: 0.00 | F26: 15.00 | G26: 62.50 | H26: №394, Дели 2016
A27: Хлеб сельский | C27: 30 | D27: 1.5 | E27: 0.3 | F27: 14.3 | G27: 66
A28: Итого: | C28: 540.00 | D28: 15.20 | E28: 15.28 | F28: 67.10 | G28: 464.70
B29: ПОЛДНИК
A30: Булочка Домашняя | C30: 40 | D30: 3.90 | E30: 3.50 | F30: 22.40 | G30: 137.00 | H30: №258 Партнер г. Уфа 2014
A31: Катык | C31: 110 | D31: 3.00 | E31: 2.70 | F31: 4.50 | G31: 54.30 | H31: №401Дели2010
A32: Рагу с курицей | C32: 30/100 | D32: 4.60 | E32: 8.20 | F32: 13.00 | G32: 144.00 | H32: ТТК №63
A33: Чай фруктовый | C33: 150/6 | D33: 0.1 | E33: 0.07 | F33: 13.5 | G33: 55 | H33: ТТК №56
A34: Хлеб пшеничный 1с | C34: 20 | D34: 1.6 | E34: 0.2 | F34: 9.8 | G34: 47
A35: Итого: | C35: 456.00 | D35: 13.20 | E35: 14.67 | F35: 63.20 | G35: 437.30
A36: ВСЕГО: | C36: 1471.00 | D36: 38.35 | E36: 42.16 | F36: 179.12 | G36: 1242.00
A38: День 2- ой
A39: Прием пищи | C39: Выход блюда | D39: Пищевые вещества (г) | G39: Энергетическая | H39: № рецептуры
A40: Наименование блюд | G40: ценность
D41: белки | E41: жиры | F41: угл-ды | G41: Ккал
B42: ЗАВТРАК
A43: Каша "Дружба" молочная с маслом | C43: 150/5 | D43: 3.90 | E43: 4.38 | F43: 19.00 | G43: 131.00 | H43: ТТК №7
A44: Какао с молоком | C44: 160 | D44: 2.00 | E44: 2.20 | F44: 11.30 | G44: 73.30 | H44: №272 Парнер г. Уфа 2014
A45: Бутерброд с сыром, маслом | C45: 25/5/3 | D45: 3.50 | E45: 5.95 | F45: 12.90 | G45: 119.60 | H45: №3Дели2010
A46: Итого: | C46: 350 | D46: 9.40 | E46: 12.33 | F46: 43.20 | G46: 323.90
A47: Фрукты свежие | C47: 100 | D47: 1.00 | E47: 0.00 | F47: 8.10 | G47: 36.00 | H47: № 368 Дели 2010
A48: апельсин
A49: Итого: | C49: 100 | D49: 1.00 | E49: 0.00 | F49: 8.10 | G49: 36.00
C50: 450 | D50: 10.40 | E50: 12.33 | F50: 51.30 | G50: 359.90
B51: ОБЕД
A52: Салат из свеклы | C52: 30 | D52: 0.36 | E52: 1.50 | F52: 2.52 | G52: 25.00 | H52: №34, Дели2016
A53: Суп картофельный с клецками с мясными фрикадельками | C53: 150/10 | D53: 3.00 | E53: 6.40 | F53: 23.60 | G53: 164.00 | H53: №38 Пермь2001
A54: Биточки рубленые из рыбы | C54: 50 | D54: 8.00 | E54: 4.90 | F54: 4.50 | G54: 94.00 | H54: ТТК №3 Д
A55: Пюре Картофельное | C55: 110 | D55: 2.20 | E55: 3.30 | F55: 15.40 | G55: 100.10 | H55: №137 Партнер 2014
A56: Компот из свежих яблок | C56: 150 | D56: 0.10 | E56: 0.10 | F56: 10.20 | G56: 42.10 | H56: № 390 Дели 2016
A57: Хлеб сельский | C57: 30 | D57: 1.5 | E57: 0.3 | F57: 14.3 | G57: 66
A58: Итого: | C58: 530.00 | D58: 15.16 | E58: 16.50 | F58: 70.52 | G58: 491.20
B59: ПОЛДНИК
A60: Кондитерские изделия | C60: 10 | D60: 1.30 | E60: 2.20 | F60: 10.00 | G60: 57.00
A61: крекер
A62: Молоко кипяченое | C62: 110 | D62: 2.50 | E62: 2.75 | F62: 4.00 | G62: 51.00 | H62: №419 Дели2016
A63: Салат из моркови | C63: 30 | D63: 0.60 | E63: 0.05 | F63: 3.00 | G63: 14.00 | H63: №42 Дели2016г
A64: Пудинг из творога с рисом с повидлом | C64: 130 | D64: 6.00 | E64: 8.50 | F64: 24.00 | G64: 196.00 | H64: № 250 Дели 2016
A65: Чай с сахаром и лимоном | C65: 150/4/4 | D65: 0.09 | E65: 0.01 | F65: 8.50 | G65: 34.50 | H65: №393Дели2010
A66: Хлеб пшеничный 1с | C66: 20 | D66: 1.6 | E66: 0.2 | F66: 9.8 | G66: 47
A67: Итого: | C67: 458 | D67: 12.09 | E67: 13.71 | F67: 59.30 | G67: 399.50
A68: ВСЕГО: | C68: 1438.00 | D68: 37.65 | E68: 42.54 | F68: 181.12 | G68: 1250.60
A70: День 3 - ий
A71: Прием пищи | C71: Выход блюда | D71: Пищевые вещества (г) | G71: Энергетическая | H71: № рецептуры
A72: Наименование блюд | G72: ценность
D73: белки | E73: жиры | F73: угл-ды | G73: Ккал
B74: ЗАВТРАК
A75: Каша геркулесовая молочная с маслом | C75: 150/5 | D75: 5.00 | E75: 5.50 | F75: 14.00 | G75: 126.00 | H75: ТТК №5
A76: Чай с молоком,сахаром | C76: 160/4 | D76: 2.30 | E76: 2.00 | F76: 11.90 | G76: 74.80 | H76: №394Дели2010
A77: Бутерброд с маслом сливочным | C77: 25/5 | D77: 1.9 | E77: 4.4 | F77: 13 | G77: 99 | H77: №1 Дели2010
A78: Итого: | C78: 350 | D78: 9.20 | E78: 11.90 | F78: 38.90 | G78: 299.80
A79: Сок | C79: 125 | D79: 0.80 | E79: 0.20 | F79: 12.00 | G79: 53.00 | H79: 399Дели2010
A80: персиковый
A81: Итого: | C81: 125 | D81: 0.80 | E81: 0.20 | F81: 12.00 | G81: 53.00
C82: 475 | D82: 10.00 | E82: 12.10 | F82: 50.90 | G82: 352.80
B83: ОБЕД
A84: Салат из свежих помидор | C84: 30 | D84: 0.33 | E84: 1.86 | F84: 1.40 | G84: 24.00 | H84: №14 Дели2016
A85: Свекольник со сметаной | C85: 150/5 | D85: 3.12 | E85: 4.80 | F85: 6.10 | G85: 80.00 | H85: №35,сб.Пермь2001
A86: Гуляш из индейки | C86: 40/40 | D86: 5.90 | E86: 7.00 | F86: 17.80 | G86: 157.80 | H86: ТТК №61
A87: Каша гречневая вязкая | C87: 110/2,5 | D87: 4.00 | E87: 3.20 | F87: 17.70 | G87: 116.00 | H87: №182,Дели 2016
A88: Напиток из урюка | C88: 150 | D88: 0.50 | E88: 0.03 | F88: 12.50 | G88: 52.10 | H88: ТТК №68
A89: Хлеб сельский | C89: 30 | D89: 1.5 | E89: 0.3 | F89: 14.3 | G89: 66
A90: Итого: | C90: 557.5 | D90: 15.35 | E90: 17.19 | F90: 69.80 | G90: 495.90
B91: ПОЛДНИК
A92: Ватрушка с повидлом | C92: 40 | D92: 6.2 | E92: 6.40 | F92: 32.00 | G92: 210 | H92: №441 Дели 2016
A93: Ряженка | C93: 110 | D93: 3.12 | E93: 2.75 | F93: 4.59 | G93: 55.60 | H93: №401Дели2010
A94: Рагу из овощей | C94: 110 | D94: 1.90 | E94: 5.00 | F94: 11.60 | G94: 99.00
A95: Хлеб пшеничный 1с | C95: 20 | D95: 1.6 | E95: 0.2 | F95: 9.8 | G95: 47
A96: Чай с сахаром | C96: 160/4 | D96: 0.05 | E96: 0.01 | F96: 4.42 | G96: 18.00 | H96: № 411 Дели2016
A97: Итого: | C97: 444 | D97: 12.87 | E97: 14.36 | F97: 62.41 | G97: 429.60
A98: ВСЕГО: | C98: 1476.5 | D98: 38.22 | E98: 43.65 | F98: 183.11 | G98: 1278.30
A100: День 4 - ый
A101: Прием пищи | C101: Выход блюда | D101: Пищевые вещества (г) | G101: Энергетическая | H101: № рецептуры
A102: Наименование блюд | G102: ценность
D103: белки | E103: жиры | F103: угл-ды | G103: Ккал
B104: ЗАВТРАК
A105: Каша пшённая молочная с маслом | C105: 150/5 | D105: 5.80 | E105: 4.50 | F105: 16.20 | G105: 128.00 | H105: ТТК №6
A106: Кофейный напиток с молоком | C106: 165/7 | D106: 1 | E106: 1.2 | F106: 10 | G106: 55 | H106: №270 Партнер г. Уфа 2014
A107: Бутерброд с сыром, маслом | C107: 25/5/3 | D107: 3.50 | E107: 5.95 | F107: 12.90 | G107: 119.60 | H107: №3Дели2010
A108: Итого: | C108: 360 | D108: 10.30 | E108: 11.65 | F108: 39.10 | G108: 302.60
A109: Фрукты свежие | C109: 100 | D109: 0.60 | E109: 0.43 | F109: 14.00 | G109: 62.30 | H109: № 368 Дели 2010
A110: груша
A111: Итого: | C111: 100 | D111: 0.60 | E111: 0.43 | F111: 14.00 | G111: 62.30
C112: 460 | D112: 10.90 | E112: 12.08 | F112: 53.10 | G112: 364.90
B113: ОБЕД
A114: Помидоры свежие порционно | C114: 30 | D114: 0.33 | E114: 0.06 | F114: 1.14 | G114: 7.20 | H114: стр563,сб1996
A115: Щи со свежей капустой, картофелем, с сметаной с курицей | C115: 150/10/5 | D115: 4.08 | E115: 6.50 | F115: 13.00 | G115: 127.00 | H115: №73 Дели 2016
A116: Тефтели из говядины с рисом и соусом | C116: 40/10 | D116: 4.80 | E116: 5.00 | F116: 6.50 | G116: 90.20 | H116: №285 и №364 С-Петербург 2008
A117: Пюре Картофельное | C117: 110 | D117: 2.20 | E117: 3.30 | F117: 15.40 | G117: 100.10 | H117: №137 Партнер 2014
A118: Компот из сухофруктов | C118: 150 | D118: 0.60 | E118: 0.00 | F118: 15.00 | G118: 62.50 | H118: №394, Дели 2016
A119: Хлеб сельский | C119: 30 | D119: 1.5 | E119: 0.3 | F119: 14.3 | G119: 66
A120: Итого: | C120: 535 | D120: 13.51 | E120: 15.16 | F120: 65.34 | G120: 453.00
B121: ПОЛДНИК
A122: Кондитерские изделия | C122: 10 | D122: 0.30 | E122: 1.20 | F122: 13.30 | G122: 63.30
A123: крекер
A124: Молоко кипяченое | C124: 110 | D124: 2.50 | E124: 2.75 | F124: 4.00 | G124: 51.00 | H124: №419 Дели2016
A125: Салат из моркови с яблоками | C125: 30 | D125: 0.20 | E125: 1.00 | F125: 2.50 | G125: 19.80 | H125: №41Дели2016
A126: Суфле из творога с повидлом | C126: 130/10 | D126: 7.00 | E126: 8.00 | F126: 23.00 | G126: 192.00 | H126: ТТК №567
A127: Напиток шиповника | C127: 150/4 | D127: 0.5 | E127: 0.25 | F127: 5.4 | G127: 25.9 | H127: ТТК № 59
A128: Хлеб пшеничный 1с | C128: 20 | D128: 1.6 | E128: 0.2 | F128: 9.8 | G128: 47
A129: Итого: | C129: 464 | D129: 12.10 | E129: 13.40 | F129: 58.00 | G129: 399.00
A130: ВСЕГО: | C130: 1459 | D130: 36.51 | E130: 40.64 | F130: 176.44 | G130: 1216.90
A132: День 5 - ый
A133: Прием пищи | C133: Выход блюда | D133: Пищевые вещества (г) | G133: Энергетическая | H133: № рецептуры
A134: Наименование блюд | G134: ценность
D135: белки | E135: жиры | F135: угл-ды | G135: Ккал
B136: ЗАВТРАК
A137: Каша полбяная молочная с маслом | C137: 150/5 | D137: 6 | E137: 5 | F137: 17.23 | G137: 138 | H137: ТТК №1
A138: Какао с молоком | C138: 160 | D138: 2.00 | E138: 2.20 | F138: 11.30 | G138: 73.30 | H138: №272 Парнер г. Уфа 2014
A139: Бутерброд с маслом сливочным | C139: 25/5 | D139: 1.9 | E139: 4.4 | F139: 13 | G139: 99 | H139: №1 Дели2010
A140: Итого: | C140: 350 | D140: 9.90 | E140: 11.60 | F140: 41.53 | G140: 310.30
A141: Сок | C141: 125 | D141: 0.30 | E141: 0.00 | F141: 10.00 | G141: 40.00 | H141: №399Дели2010
A142: вишневый
A143: Итого: | C143: 125 | D143: 0.30 | E143: 0.00 | F143: 10.00 | G143: 40.00
C144: 470 | D144: 10.20 | E144: 11.60 | F144: 51.53 | G144: 350.30
B145: ОБЕД
A146: Салат витаминный | C146: 30 | D146: 0.45 | E146: 1.75 | F146: 4.20 | G146: 34.35 | H146: №15 Партнер 2009
A147: Суп вермишелевый с картофелем с мясными фрикадельками | C147: 150/10 | D147: 4.00 | E147: 4.45 | F147: 11.70 | G147: 103.00 | H147: №88 Дели 2016
A148: Плов из курицы | C148: 130 | D148: 9.2 | E148: 12.2 | F148: 34 | G148: 283 | H148: №321 Дели 2016
A149: Компот из свежих яблок | C149: 150 | D149: 0.10 | E149: 0.10 | F149: 10.20 | G149: 42.10 | H149: № 390 Дели 2016
A150: Хлеб сельский | C150: 30 | D150: 1.5 | E150: 0.3 | F150: 14.3 | G150: 66
A151: Итого: | C151: 500 | D151: 14.80 | E151: 17.05 | F151: 70.20 | G151: 494.10
B152: ПОЛДНИК
A153: Кондитерские изделия | C153: 20 | D153: 1.50 | E153: 4.00 | F153: 24.30 | G153: 138.00
A154: печенье
A155: Кефир | C155: 110 | D155: 3.1 | E155: 2.75 | F155: 4.4 | G155: 54.8 | H155: №401Дели2010
A156: Омлет натуральный | C156: 130 | D156: 6.00 | E156: 6.50 | F156: 15.00 | G156: 142.50 | H156: №229 Дели2016
A157: Хлеб пшеничный 1с | C157: 20 | D157: 1.6 | E157: 0.2 | F157: 9.8 | G157: 47
A158: Чай с сахаром | C158: 160/4 | D158: 0.05 | E158: 0.01 | F158: 4.42 | G158: 18.00 | H158: № 411 Дели2016
A159: Итого: | C159: 444 | D159: 12.25 | E159: 13.46 | F159: 57.92 | G159: 400.30
A160: ВСЕГО: | C160: 1419 | D160: 37.25 | E160: 42.11 | F160: 179.65 | G160: 1244.70
C161: 2 НЕДЕЛЯ
A162: День 6 - ой
A163: Прием пищи | C163: Выход блюда | D163: Пищевые вещества (г) | G163: Энергетическая | H163: № рецептуры
A164: Наименование блюд | G164: ценность
D165: белки | E165: жиры | F165: угл-ды | G165: Ккал
B166: ЗАВТРАК
A167: Каша геркулесовая молочная с маслом | C167: 150/5 | D167: 4.80 | E167: 5.00 | F167: 14.00 | G167: 120.00 | H167: ТТК №5
A168: Чай с молоком,сахаром | C168: 160/4 | D168: 2.30 | E168: 2.00 | F168: 11.90 | G168: 74.80 | H168: №394Дели2010
A169: Бутерброд с сыром, маслом | C169: 25/5/3 | D169: 3.50 | E169: 5.95 | F169: 12.90 | G169: 119.60 | H169: №3Дели2010
A170: Итого: | C170: 352 | D170: 10.60 | E170: 12.95 | F170: 38.80 | G170: 314.40
A171: Фрукты свежие | C171: 100 | D171: 0.36 | E171: 0.10 | F171: 10.00 | G171: 40.00 | H171: №386Дели2016
A172: яблоко
A173: Итого: | C173: 100 | D173: 0.36 | E173: 0.10 | F173: 10.00 | G173: 40.00
C174: 452 | D174: 10.96 | E174: 12.30 | F174: 48.80 | G174: 354.40
B175: ОБЕД
A176: Салат из свежей капусты | C176: 30 | D176: 0.42 | E176: 1.50 | F176: 2.70 | G176: 26.00 | H176: №21, Дели 2016
A177: Суп картофельный с горохом с мясными фрикадельками и гренками | C177: 150/10/10 | D177: 2.00 | E177: 3.00 | F177: 13.60 | G177: 89.00 | H177: ТТК№139
A178: Биточки куриные "Солнышко" | C178: 50 | D178: 6.40 | E178: 9.00 | F178: 5.20 | G178: 127.00 | H178: ТТК №97Д
A179: Макароны отварные | C179: 110 | D179: 4.10 | E179: 3.00 | F179: 25.00 | G179: 143.40 | H179: №218 Дели 2016
A180: Напиток из урюка | C180: 150 | D180: 0.50 | E180: 0.03 | F180: 12.50 | G180: 52.10 | H180: ТТК №68
A181: Хлеб сельский | C181: 30 | D181: 1.5 | E181: 0.3 | F181: 14.3 | G181: 66
A182: Итого: | C182: 540 | D182: 14.92 | E182: 16.83 | F182: 73.30 | G182: 503.50
B183: ПОЛДНИК
A184: Шафран с яблоками | C184: 40 | D184: 2.7 | E184: 4.4 | F184: 22.4 | G184: 140 | H184: Сб.нац блюд 1996,акт20
A185: Ряженка | C185: 110 | D185: 3.12 | E185: 2.75 | F185: 4.59 | G185: 55.60 | H185: №401Дели2010
A186: Рагу с курицей | C186: 30/100 | D186: 4.60 | E186: 8.20 | F186: 13.00 | G186: 144.00 | H186: ТТК №63
A187: Чай фруктовый | C187: 150/6 | D187: 0.1 | E187: 0.07 | F187: 13.5 | G187: 55 | H187: ТТК №56
A188: Хлеб пшеничный 1с | C188: 20 | D188: 1.6 | E188: 0.2 | F188: 9.8 | G188: 47
A189: Итого: | C189: 456 | D189: 12.12 | E189: 13.80 | F189: 63.29 | G189: 441.60
A190: ВСЕГО: | C190: 1348 | D190: 38.00 | E190: 43.68 | F190: 185.39 | G190: 1299.50
A192: День 7 - ой
A193: Прием пищи | C193: Выход блюда | D193: Пищевые вещества (г) | G193: Энергетическая | H193: № рецептуры
A194: Наименование блюд | G194: ценность
D195: белки | E195: жиры | F195: угл-ды | G195: Ккал
B196: ЗАВТРАК
A197: Каша пшённая молочная с маслом | C197: 150/5 | D197: 5.80 | E197: 4.50 | F197: 16.20 | G197: 128.00 | H197: ТТК №6
A198: Кофейный напиток с молоком | C198: 165/7 | D198: 1 | E198: 1.2 | F198: 10 | G198: 55 | H198: №270 Партнер г. Уфа 2014
A199: Бутерброд с маслом сливочным | C199: 25/5 | D199: 1.9 | E199: 4.4 | F199: 13 | G199: 99 | H199: №1 Дели2010
A200: Итого: | C200: 357 | D200: 8.70 | E200: 10.10 | F200: 39.20 | G200: 282.00
A201: Сок | C201: 125 | D201: 1.20 | E201: 1.00 | F201: 9.00 | G201: 47.00 | H201: № 368 Дели 2010
A202: яблочный
A203: Итого: | C203: 125 | D203: 1.20 | E203: 1.00 | F203: 9.00 | G203: 47.00
C204: 482 | D204: 9.90 | E204: 11.70 | F204: 48.20 | G204: 329.00
B205: ОБЕД
... 133 more rows

Sheet кал1-3
C1: Калорийность в разрезе
D2: ДОУ от 1 до 3 лет
A4: с отклонениями | C4: 35,9-37,8-39,7 | D4: 40,18-42,3-44,4 | E4: 173,56-182,7-191,8 | F4: 1197-1260-1323
B5: Объемы порций | C5: Белки | D5: Жиры | E5: Угл-ды | F5: Энергетическая ценность
A6: 1 | B6: 1471.00 | C6: 38.35 | D6: 42.16 | E6: 179.12 | F6: 1242.00
A7: 2 | B7: 1438.00 | C7: 37.65 | D7: 42.54 | E7: 181.12 | F7: 1250.60
A8: 3 | B8: 1476.50 | C8: 38.22 | D8: 43.65 | E8: 183.11 | F8: 1278.30
A9: 4 | B9: 1459.00 | C9: 36.51 | D9: 40.64 | E9: 176.44 | F9: 1216.90
A10: 5 | B10: 1419.00 | C10: 37.25 | D10: 42.11 | E10: 179.65 | F10: 1244.70
A11: 6 | B11: 1348.00 | C11: 38.00 | D11: 43.68 | E11: 185.39 | F11: 1299.50
A12: 7 | B12: 1495.00 | C12: 36.35 | D12: 40.20 | E12: 182.59 | F12: 1178.90
A13: 8 | B13: 1414.00 | C13: 40.66 | D13: 46.27 | E13: 181.22 | F13: 1304.30
A14: 9 | B14: 1424.00 | C14: 37.18 | D14: 39.70 | E14: 181.26 | F14: 1210.20
A15: 10 | B15: 1437.00 | C15: 36.89 | D15: 41.37 | E15: 180.42 | F15: 1239.70
A17: Всего | B17: 14381.50 | C17: 377.06 | D17: 422.31 | E17: 1810.32 | F17: 12465.10
A18: В среднем | B18: 1438.15 | C18: 37.71 | D18: 42.23 | E18: 181.03 | F18: 1246.51

Sheet кал3-7
C5: Калорийность
D6: ДОУ от 3 до 7 лет
A7: с отклонениями | C7: 46,17-48,6-51,03 | D7: 51,3-54-56,7 | E7: 223,154-234,9-246,644 | F7: 1539-1620-1701
B8: Объемы порций | C8: Белки | D8: Жиры | E8: Угл-ды | F8: Энергетическая ценность
A9: 1 | B9: 1842.50 | C9: 48.67 | D9: 53.24 | E9: 232.23 | F9: 1602.58
A10: 2 | B10: 1750.50 | C10: 49.54 | D10: 56.92 | E10: 230.76 | F10: 1633.60
A11: 3 | B11: 1809.50 | C11: 47.34 | D11: 52.68 | E11: 230.71 | F11: 1583.38
A12: 4 | B12: 1780.50 | C12: 49.54 | D12: 54.28 | E12: 240.54 | F12: 1654.10
A13: 5 | B13: 1740.50 | C13: 47.96 | D13: 55.20 | E13: 241.56 | F13: 1650.68
A14: 6 | B14: 1762.50 | C14: 49.35 | D14: 56.25 | E14: 232.10 | F14: 1634.20
A15: 7 | B15: 1860.50 | C15: 49.16 | D15: 51.76 | E15: 237.69 | F15: 1606.00
A16: 8 | B16: 1690.50 | C16: 46.75 | D16: 54.91 | E16: 227.33 | F16: 1580.78
A17: 9 | B17: 1761.50 | C17: 49.51 | D17: 48.92 | E17: 229.09 | F17: 1554.30
A18: 10 | B18: 1709.50 | C18: 48.71 | D18: 58.07 | E18: 244.67 | F18: 1709.06
A20: Всего | B20: 17708.00 | C20: 486.51 | D20: 542.24 | E20: 2346.68 | F20: 16208.68
A21: В среднем | B21: 1770.80 | C21: 48.65 | D21: 54.22 | E21: 234.67 | F21: 1620.87

Sheet свод1-3
B1: Расход продуктов ДОУ
D2: от 1 до 3 лет | K2: нетто
A3: Наименов. прод. | B3: 1 | C3: 2 | D3: 3 | E3: 4 | F3: 5 | G3: 6 | H3: 7 | I3: 8 | J3: 9 | K3: 10 | L3: Кол-во | M3: Среднее
A5: Сахар | B5: 22.60 | C5: 23.99 | D5: 16.80 | E5: 25.95 | F5: 16.15 | G5: 19.60 | H5: 26.49 | I5: 20.15 | J5: 26.30 | K5: 16.75 | L5: 214.78 | M5: 21.48
A6: Заварка | B6: 0.40 | C6: 0.30 | D6: 0.40 | E6: 0.00 | F6: 0.20 | G6: 0.40 | H6: 0.30 | I6: 0.20 | J6: 0.20 | K6: 0.20 | L6: 2.60 | M6: 0.26
A7: Яйцо | B7: 0.80 | C7: 16.96 | D7: 1.90 | E7: 6.20 | F7: 98.50 | G7: 4.70 | H7: 12.70 | I7: 1.80 | J7: 9.10 | K7: 103.00 | L7: 255.66 | M7: 25.57
A8: Дрожжи сухие | B8: 0.16 | C8: 0.00 | D8: 0.16 | E8: 0.00 | F8: 0.00 | G8: 0.24 | H8: 0.00 | I8: 0.20 | J8: 0.00 | K8: 0.00 | L8: 0.76 | M8: 0.08
A9: Батон нарезной | B9: 25.00 | C9: 25.00 | D9: 25.00 | E9: 25.00 | F9: 25.00 | G9: 25.00 | H9: 25.00 | I9: 25.00 | J9: 25.00 | K9: 25.00 | L9: 250.00 | M9: 25.00
A10: Хлеб пшеничный 1с | B10: 24.00 | C10: 20.00 | D10: 20.00 | E10: 20.00 | F10: 20.00 | G10: 32.00 | H10: 20.00 | I10: 20.00 | J10: 20.00 | K10: 26.60 | L10: 222.60 | M10: 22.26
A11: Хлеб сельский | B11: 30.00 | C11: 30.00 | D11: 30.00 | E11: 30.00 | F11: 30.00 | G11: 30.00 | H11: 30.00 | I11: 30.00 | J11: 30.00 | K11: 30.00 | L11: 300.00 | M11: 30.00
A12: Мука пшеничная | B12: 28.90 | C12: 6.60 | D12: 26.48 | E12: 0.40 | F12: 0.00 | G12: 21.54 | H12: 0.40 | I12: 29.00 | J12: 35.10 | K12: 11.30 | L12: 159.72 | M12: 15.97
A13: Кисель-концентрат | B13: 0.00 | C13: 0.00 | D13: 0.00 | E13: 0.00 | F13: 0.00 | G13: 0.00 | H13: 0.00 | I13: 0.00 | J13: 0.00 | K13: 0.00 | L13: 0.00 | M13: 0.00
A14: Макаронные изделия | B14: 38.50 | C14: 0.00 | D14: 0.00 | E14: 0.00 | F14: 0.00 | G14: 38.50 | H14: 0.00 | I14: 0.00 | J14: 0.00 | K14: 0.00 | L14: 77.00 | M14: 7.70
A15: Вермишель | B15: 0.00 | C15: 0.00 | D15: 0.00 | E15: 0.00 | F15: 6.00 | G15: 0.00 | H15: 0.00 | I15: 0.00 | J15: 12.00 | K15: 0.00 | L15: 18.00 | M15: 1.80
A16: Крупа рисовая | B16: 0.00 | C16: 26.60 | D16: 0.00 | E16: 4.00 | F16: 31.28 | G16: 0.00 | H16: 0.00 | I16: 0.00 | J16: 27.70 | K16: 19.00 | L16: 108.58 | M16: 10.86
A17: Крупа кукурузная | B17: 0.00 | C17: 0.00 | D17: 0.00 | E17: 0.00 | F17: 0.00 | G17: 0.00 | H17: 0.00 | I17: 0.00 | J17: 0.00 | K17: 0.00 | L17: 0.00 | M17: 0.00
A18: Крупа манная | B18: 17.00 | C18: 1.25 | D18: 0.00 | E18: 10.00 | F18: 0.00 | G18: 0.00 | H18: 9.05 | I18: 15.00 | J18: 0.00 | K18: 0.00 | L18: 52.30 | M18: 5.23
A19: Горох | B19: 0.00 | C19: 0.00 | D19: 0.00 | E19: 0.00 | F19: 0.00 | G19: 15.00 | H19: 0.00 | I19: 0.00 | J19: 0.00 | K19: 0.00 | L19: 15.00 | M19: 1.50
A20: Крупа пшенная | B20: 0.00 | C20: 8.00 | D20: 0.00 | E20: 23.00 | F20: 0.00 | G20: 0.00 | H20: 29.00 | I20: 0.00 | J20: 0.00 | K20: 0.00 | L20: 60.00 | M20: 6.00
A21: Крупа ячневая | B21: 0.00 | C21: 0.00 | D21: 0.00 | E21: 0.00 | F21: 0.00 | G21: 0.00 | H21: 0.00 | I21: 0.00 | J21: 0.00 | K21: 0.00 | L21: 0.00 | M21: 0.00
A22: Полба | B22: 0.00 | C22: 0.00 | D22: 0.00 | E22: 0.00 | F22: 19.00 | G22: 0.00 | H22: 0.00 | I22: 0.00 | J22: 0.00 | K22: 0.00 | L22: 19.00 | M22: 1.90
A23: Крупа перловая | B23: 6.00 | C23: 0.00 | D23: 0.00 | E23: 0.00 | F23: 0.00 | G23: 0.00 | H23: 0.00 | I23: 0.00 | J23: 0.00 | K23: 21.60 | L23: 27.60 | M23: 2.76
A24: Крупа геркулесовая | B24: 0.00 | C24: 0.00 | D24: 19.00 | E24: 0.00 | F24: 0.00 | G24: 19.00 | H24: 0.00 | I24: 0.00 | J24: 0.00 | K24: 0.00 | L24: 38.00 | M24: 3.80
A25: Крупа пшеничная | B25: 0.00 | C25: 0.00 | D25: 0.00 | E25: 0.00 | F25: 0.00 | G25: 0.00 | H25: 0.00 | I25: 0.00 | J25: 0.00 | K25: 0.00 | L25: 0.00 | M25: 0.00
A26: Крупа гречневая | B26: 0.00 | C26: 0.00 | D26: 27.50 | E26: 0.00 | F26: 0.00 | G26: 0.00 | H26: 0.00 | I26: 39.00 | J26: 0.00 | K26: 0.00 | L26: 66.50 | M26: 6.65
A27: Картофель | B27: 118.30 | C27: 124.43 | D27: 61.10 | E27: 112.43 | F27: 45.00 | G27: 103.30 | H27: 109.43 | I27: 135.90 | J27: 18.00 | K27: 0.00 | L27: 827.89 | M27: 82.79
A28: Морковь | B28: 15.63 | C28: 36.00 | D28: 18.90 | E28: 22.60 | F28: 25.10 | G28: 30.83 | H28: 22.60 | I28: 16.00 | J28: 44.60 | K28: 20.40 | L28: 252.66 | M28: 25.27
A29: Лук репчатый | B29: 11.70 | C29: 16.25 | D29: 16.40 | E29: 10.20 | F29: 12.68 | G29: 14.20 | H29: 15.45 | I29: 20.90 | J29: 12.50 | K29: 13.94 | L29: 144.22 | M29: 14.42
A30: Свекла | B30: 0.00 | C30: 28.50 | D30: 38.30 | E30: 0.00 | F30: 0.00 | G30: 0.00 | H30: 28.50 | I30: 24.00 | J30: 0.00 | K30: 20.00 | L30: 139.30 | M30: 13.93
A31: Капуста свежая | B31: 31.80 | C31: 0.00 | D31: 48.40 | E31: 30.00 | F31: 21.00 | G31: 24.30 | H31: 18.00 | I31: 12.00 | J31: 30.00 | K31: 0.00 | L31: 215.50 | M31: 21.55
A32: Икра кабачковая | B32: 0.00 | C32: 0.00 | D32: 0.00 | E32: 0.00 | F32: 0.00 | G32: 0.00 | H32: 0.00 | I32: 0.00 | J32: 0.00 | K32: 0.00 | L32: 0.00 | M32: 0.00
A33: Огурцы соленые | B33: 9.00 | C33: 0.00 | D33: 0.00 | E33: 0.00 | F33: 0.00 | G33: 0.00 | H33: 0.00 | I33: 0.00 | J33: 0.00 | K33: 0.00 | L33: 9.00 | M33: 0.90
A34: Помидоры свежие | B34: 0.00 | C34: 0.00 | D34: 28.50 | E34: 30.00 | F34: 0.00 | G34: 0.00 | H34: 0.00 | I34: 28.50 | J34: 30.00 | K34: 0.00 | L34: 117.00 | M34: 11.70
A35: Огурцы свежие | B35: 0.00 | C35: 0.00 | D35: 0.00 | E35: 0.00 | F35: 0.00 | G35: 0.00 | H35: 0.00 | I35: 0.00 | J35: 0.00 | K35: 0.00 | L35: 0.00 | M35: 0.00
A36: перец | B36: 0.00 | C36: 0.00 | D36: 0.00 | E36: 0.00 | F36: 0.00 | G36: 0.00 | H36: 0.00 | I36: 0.00 | J36: 0.00 | K36: 0.00 | L36: 0.00 | M36: 0.00
A37: Томат-паста | B37: 0.50 | C37: 0.00 | D37: 2.00 | E37: 1.00 | F37: 0.00 | G37: 0.00 | H37: 1.00 | I37: 0.00 | J37: 0.00 | K37: 0.00 | L37: 4.50 | M37: 0.45
A38: Масло сливочное | B38: 12.20 | C38: 15.10 | D38: 13.60 | E38: 11.00 | F38: 13.70 | G38: 14.15 | H38: 18.20 | I38: 12.10 | J38: 23.00 | K38: 14.70 | L38: 147.75 | M38: 14.78
A39: Масло растительное | B39: 12.90 | C39: 3.95 | D39: 12.50 | E39: 6.90 | F39: 7.00 | G39: 8.30 | H39: 7.55 | I39: 8.80 | J39: 8.30 | K39: 5.40 | L39: 81.60 | M39: 8.16
A40: Фрукты свежие | B40: 0.00 | C40: 100.00 | D40: 0.00 | E40: 100.00 | F40: 0.00 | G40: 100.00 | H40: 0.00 | I40: 100.00 | J40: 0.00 | K40: 100.00 | L40: 500.00 | M40: 50.00
A41: Яблоки | B41: 8.40 | C41: 30.00 | D41: 0.00 | E41: 12.90 | F41: 36.75 | G41: 11.65 | H41: 12.90 | I41: 30.00 | J41: 0.00 | K41: 8.00 | L41: 150.60 | M41: 15.06
A42: крыжовник зам. | B42: 0.00 | C42: 0.00 | D42: 0.00 | E42: 0.00 | F42: 0.00 | G42: 0.00 | H42: 0.00 | I42: 0.00 | J42: 0.00 | K42: 0.00 | L42: 0.00 | M42: 0.00
A43: Лимон | B43: 0.00 | C43: 4.00 | D43: 0.00 | E43: 0.00 | F43: 0.00 | G43: 0.00 | H43: 4.00 | I43: 0.00 | J43: 0.00 | K43: 0.00 | L43: 8.00 | M43: 0.80
A44: Ягодная смесь зам. | B44: 0.00 | C44: 0.00 | D44: 0.00 | E44: 0.00 | F44: 0.00 | G44: 0.00 | H44: 0.00 | I44: 0.00 | J44: 0.00 | K44: 0.00 | L44: 0.00 | M44: 0.00
A45: Сок | B45: 125.00 | C45: 0.00 | D45: 125.00 | E45: 0.00 | F45: 125.00 | G45: 0.00 | H45: 125.00 | I45: 0.00 | J45: 125.00 | K45: 0.00 | L45: 625.00 | M45: 62.50
A46: Курага | B46: 0.00 | C46: 0.00 | D46: 0.00 | E46: 0.00 | F46: 0.00 | G46: 0.00 | H46: 0.00 | I46: 0.00 | J46: 0.00 | K46: 0.00 | L46: 0.00 | M46: 0.00
A47: Сухофрукты | B47: 15.00 | C47: 0.00 | D47: 0.00 | E47: 15.00 | F47: 0.00 | G47: 0.00 | H47: 15.00 | I47: 0.00 | J47: 0.00 | K47: 15.00 | L47: 60.00 | M47: 6.00
A48: Урюк | B48: 6.00 | C48: 0.00 | D48: 12.50 | E48: 0.00 | F48: 0.00 | G48: 18.50 | H48: 0.00 | I48: 0.00 | J48: 12.50 | K48: 0.00 | L48: 49.50 | M48: 4.95
A49: повидло фруктовое | B49: 0.00 | C49: 10.00 | D49: 18.80 | E49: 10.00 | F49: 0.00 | G49: 0.00 | H49: 10.00 | I49: 0.00 | J49: 0.00 | K49: 0.00 | L49: 48.80 | M49: 4.88
A50: Шиповник порошок | B50: 0.00 | C50: 0.00 | D50: 0.00 | E50: 2.25 | F50: 0.00 | G50: 0.00 | H50: 0.00 | I50: 0.00 | J50: 2.25 | K50: 0.00 | L50: 4.50 | M50: 0.45
A51: Молоко | B51: 75.00 | C51: 271.50 | D51: 117.00 | E51: 285.00 | F51: 172.20 | G51: 125.00 | H51: 266.50 | I51: 157.40 | J51: 185.00 | K51: 177.20 | L51: 1831.80 | M51: 183.18
A52: Кефир | B52: 0.00 | C52: 0.00 | D52: 0.00 | E52: 0.00 | F52: 110.00 | G52: 0.00 | H52: 0.00 | I52: 0.00 | J52: 0.00 | K52: 110.00 | L52: 220.00 | M52: 22.00
A53: Ряженка | B53: 0.00 | C53: 0.00 | D53: 110.00 | E53: 0.00 | F53: 0.00 | G53: 110.00 | H53: 0.00 | I53: 0.00 | J53: 0.00 | K53: 0.00 | L53: 220.00 | M53: 22.00
A54: Катык | B54: 110.00 | C54: 0.00 | D54: 0.00 | E54: 0.00 | F54: 0.00 | G54: 0.00 | H54: 0.00 | I54: 110.00 | J54: 0.00 | K54: 0.00 | L54: 220.00 | M54: 22.00
A55: Молоко сгущенное | B55: 0.00 | C55: 0.00 | D55: 0.00 | E55: 0.00 | F55: 0.00 | G55: 0.00 | H55: 0.00 | I55: 0.00 | J55: 0.00 | K55: 0.00 | L55: 0.00 | M55: 0.00
A56: Сметана | B56: 5.00 | C56: 3.40 | D56: 12.70 | E56: 17.40 | F56: 0.00 | G56: 0.00 | H56: 10.20 | I56: 8.75 | J56: 5.00 | K56: 0.00 | L56: 62.45 | M56: 6.25
A57: Творог | B57: 0.00 | C57: 84.50 | D57: 0.00 | E57: 92.85 | F57: 0.00 | G57: 0.00 | H57: 119.60 | I57: 0.00 | J57: 72.50 | K57: 0.00 | L57: 369.45 | M57: 36.95
A58: Говядина | B58: 0.00 | C58: 0.00 | D58: 0.00 | E58: 0.00 | F58: 0.00 | G58: 0.00 | H58: 0.00 | I58: 0.00 | J58: 33.80 | K58: 0.00 | L58: 33.80 | M58: 3.38
A59: Фарш из говядины | B59: 34.30 | C59: 11.40 | D59: 0.00 | E59: 30.40 | F59: 11.40 | G59: 11.40 | H59: 0.00 | I59: 98.00 | J59: 0.00 | K59: 29.75 | L59: 226.65 | M59: 22.67
A60: Цыплята | B60: 56.70 | C60: 0.00 | D60: 0.00 | E60: 14.70 | F60: 55.25 | G60: 81.10 | H60: 14.70 | I60: 0.00 | J60: 0.00 | K60: 36.86 | L60: 259.31 | M60: 25.93
A61: Индейка филе | B61: 0.00 | C61: 0.00 | D61: 56.90 | E61: 0.00 | F61: 0.00 | G61: 0.00 | H61: 0.00 | I61: 0.00 | J61: 0.00 | K61: 0.00 | L61: 56.90 | M61: 5.69
A62: фарш птицы | B62: 0.00 | C62: 0.00 | D62: 0.00 | E62: 0.00 | F62: 0.00 | G62: 0.00 | H62: 0.00 | I62: 0.00 | J62: 0.00 | K62: 0.00 | L62: 0.00 | M62: 0.00
A63: Сыр | B63: 0.00 | C63: 5.00 | D63: 0.00 | E63: 5.00 | F63: 0.00 | G63: 5.00 | H63: 0.00 | I63: 5.00 | J63: 0.00 | K63: 5.00 | L63: 25.00 | M63: 2.50
A64: фарш из минтая | B64: 0.00 | C64: 37.50 | D64: 0.00 | E64: 0.00 | F64: 0.00 | G64: 0.00 | H64: 37.50 | I64: 0.00 | J64: 0.00 | K64: 0.00 | L64: 75.00 | M64: 7.50
A65: Кофейный напиток | B65: 0.00 | C65: 0.00 | D65: 0.00 | E65: 1.30 | F65: 0.00 | G65: 0.00 | H65: 1.30 | I65: 0.00 | J65: 0.00 | K65: 1.30 | L65: 3.90 | M65: 0.39
A66: Какао-порошок | B66: 0.00 | C66: 1.30 | D66: 0.00 | E66: 0.00 | F66: 1.30 | G66: 0.00 | H66: 0.00 | I66: 1.30 | J66: 0.00 | K66: 0.00 | L66: 3.90 | M66: 0.39
A67: печенье | B67: 0.00 | C67: 0.00 | D67: 0.00 | E67: 0.00 | F67: 20.00 | G67: 0.00 | H67: 0.00 | I67: 0.00 | J67: 0.00 | K67: 20.00 | L67: 40.00 | M67: 4.00
A68: крекер | B68: 0.00 | C68: 10.00 | D68: 0.00 | E68: 10.00 | F68: 0.00 | G68: 0.00 | H68: 10.00 | I68: 0.00 | J68: 10.00 | K68: 0.00 | L68: 40.00 | M68: 4.00
A69: Соль | B69: 3.25 | C69: 2.43 | D69: 4.30 | E69: 2.30 | F69: 3.50 | G69: 3.44 | H69: 3.53 | I69: 3.80 | J69: 2.70 | K69: 3.50 | L69: 32.75 | M69: 3.28
A70: Крахмал | B70: 0.00 | C70: 9.00 | D70: 0.00 | E70: 0.00 | F70: 0.00 | G70: 9.00 | H70: 0.00 | I70: 0.00 | J70: 0.00 | K70: 0.00 | L70: 18.00 | M70: 1.80
A71: Сухари панировочные | B71: 0.00 | C71: 3.75 | D71: 0.00 | E71: 0.00 | F71: 0.00 | G71: 4.00 | H71: 8.95 | I71: 1.70 | J71: 0.00 | K71: 4.00 | L71: 22.40 | M71: 2.24
A72: Напиток витаминный | B72: 0.00 | C72: 0.00 | D72: 0.00 | E72: 0.00 | F72: 0.00 | G72: 0.00 | H72: 0.00 | I72: 0.00 | J72: 0.00 | K72: 0.00 | L72: 0.00 | M72: 0.00
A73: Крупы, бобовые | B73: 23.00 | C73: 35.85 | D73: 46.50 | E73: 37.00 | F73: 50.28 | G73: 34.00 | H73: 38.05 | I73: 54.00 | J73: 27.70 | K73: 40.60 | L73: 386.98 | M73: 38.70
A74: Овощи разные | B74: 68.63 | C74: 80.75 | D74: 152.50 | E74: 93.80 | F74: 58.78 | G74: 69.33 | H74: 85.55 | I74: 101.40 | J74: 117.10 | K74: 54.34 | L74: 882.18 | M74: 88.22
A75: Фрукты | B75: 8.40 | C75: 134.00 | D75: 0.00 | E75: 112.90 | F75: 36.75 | G75: 111.65 | H75: 16.90 | I75: 130.00 | J75: 0.00 | K75: 108.00 | L75: 658.60 | M75: 65.86
A76: Фрукты сухие | B76: 21.00 | C76: 10.00 | D76: 31.30 | E76: 27.25 | F76: 0.00 | G76: 18.50 | H76: 25.00 | I76: 0.00 | J76: 14.75 | K76: 15.00 | L76: 162.80 | M76: 16.28
A77: Молочные прод. | B77: 185.00 | C77: 271.50 | D77: 227.00 | E77: 285.00 | F77: 282.20 | G77: 235.00 | H77: 266.50 | I77: 267.40 | J77: 185.00 | K77: 287.20 | L77: 2491.80 | M77: 249.18
A78: Говядина | B78: 34.30 | C78: 11.40 | D78: 0.00 | E78: 30.40 | F78: 11.40 | G78: 11.40 | H78: 0.00 | I78: 98.00 | J78: 33.80 | K78: 29.75 | L78: 260.45 | M78: 26.05
A79: птица | B79: 56.70 | C79: 0.00 | D79: 56.90 | E79: 14.70 | F79: 55.25 | G79: 81.10 | H79: 14.70 | I79: 0.00 | J79: 0.00 | K79: 36.86 | L79: 316.21 | M79: 31.62
A80: Макаронные изделия | B80: 38.50 | C80: 0.00 | D80: 0.00 | E80: 0.00 | F80: 6.00 | G80: 38.50 | H80: 0.00 | I80: 0.00 | J80: 12.00 | K80: 0.00 | L80: 95.00 | M80: 9.50
A81: Хлеб пшеничный | B81: 49.00 | C81: 45.00 | D81: 45.00 | E81: 45.00 | F81: 45.00 | G81: 57.00 | H81: 45.00 | I81: 45.00 | J81: 45.00 | K81: 51.60 | L81: 472.60 | M81: 47.26
A82: Кондитерские изделия | B82: 0.00 | C82: 10.00 | D82: 0.00 | E82: 10.00 | F82: 20.00 | G82: 0.00 | H82: 10.00 | I82: 0.00 | J82: 10.00 | K82: 20.00 | L82: 80.00 | M82: 8.00
A83: Субпродукты | L83: 0.00 | M83: 0.00
A84: Примечание: расход хлеба пшеничного с учетом расхода сухарей панировочных
B85: Расход продуктов ДОУ
D86: от 1 до 3 лет | K86: брутто
A88: Наименов. прод. | B88: 1 | C88: 2 | D88: 3 | E88: 4 | F88: 5 | G88: 6 | H88: 7 | I88: 8 | J88: 9 | K88: 10 | L88: Кол-во | M88: Среднее
A90: Сахар | B90: 22.60 | C90: 23.99 | D90: 16.80 | E90: 25.95 | F90: 16.15 | G90: 19.60 | H90: 26.49 | I90: 20.15 | J90: 26.30 | K90: 16.75 | L90: 214.78 | M90: 21.48
A91: Заварка | B91: 0.40 | C91: 0.30 | D91: 0.40 | E91: 0.00 | F91: 0.20 | G91: 0.40 | H91: 0.30 | I91: 0.20 | J91: 0.20 | K91: 0.20 | L91: 2.60 | M91: 0.26
A92: Яйцо | B92: 0.80 | C92: 16.96 | D92: 1.90 | E92: 6.20 | F92: 98.50 | G92: 4.70 | H92: 12.70 | I92: 1.80 | J92: 9.10 | K92: 103.00 | L92: 255.66 | M92: 25.57
A93: Дрожжи сухие | B93: 0.16 | C93: 0.00 | D93: 0.16 | E93: 0.00 | F93: 0.00 | G93: 0.24 | H93: 0.00 | I93: 0.20 | J93: 0.00 | K93: 0.00 | L93: 0.76 | M93: 0.08
A94: Батон нарезной | B94: 25.00 | C94: 25.00 | D94: 25.00 | E94: 25.00 | F94: 25.00 | G94: 25.00 | H94: 25.00 | I94: 25.00 | J94: 25.00 | K94: 25.00 | L94: 250.00 | M94: 25.00
A95: Хлеб пшеничный 1с | B95: 24.00 | C95: 20.00 | D95: 20.00 | E95: 20.00 | F95: 20.00 | G95: 34.40 | H95: 20.00 | I95: 20.00 | J95: 20.00 | K95: 26.60 | L95: 225.00 | M95: 22.50
A96: Хлеб сельский | B96: 30.00 | C96: 30.00 | D96: 30.00 | E96: 30.00 | F96: 30.00 | G96: 30.00 | H96: 30.00 | I96: 30.00 | J96: 30.00 | K96: 30.00 | L96: 300.00 | M96: 30.00
A97: Мука пшеничная | B97: 28.90 | C97: 6.60 | D97: 26.48 | E97: 0.40 | F97: 0.00 | G97: 21.54 | H97: 0.40 | I97: 29.00 | J97: 35.10 | K97: 11.30 | L97: 159.72 | M97: 15.97
A98: Кисель-концентрат | B98: 0.00 | C98: 0.00 | D98: 0.00 | E98: 0.00 | F98: 0.00 | G98: 0.00 | H98: 0.00 | I98: 0.00 | J98: 0.00 | K98: 0.00 | L98: 0.00 | M98: 0.00
A99: Макаронные изделия | B99: 38.50 | C99: 0.00 | D99: 0.00 | E99: 0.00 | F99: 0.00 | G99: 38.50 | H99: 0.00 | I99: 0.00 | J99: 0.00 | K99: 0.00 | L99: 77.00 | M99: 7.70
A100: Вермишель | B100: 0.00 | C100: 0.00 | D100: 0.00 | E100: 0.00 | F100: 6.00 | G100: 0.00 | H100: 0.00 | I100: 0.00 | J100: 12.00 | K100: 0.00 | L100: 18.00 | M100: 1.80
A101: Крупа рисовая | B101: 0.00 | C101: 26.60 | D101: 0.00 | E101: 4.00 | F101: 31.28 | G101: 0.00 | H101: 0.00 | I101: 0.00 | J101: 27.70 | K101: 19.00 | L101: 108.58 | M101: 10.86
A102: Крупа кукурузная | B102: 0.00 | C102: 0.00 | D102: 0.00 | E102: 0.00 | F102: 0.00 | G102: 0.00 | H102: 0.00 | I102: 0.00 | J102: 0.00 | K102: 0.00 | L102: 0.00 | M102: 0.00
A103: Крупа манная | B103: 17.00 | C103: 1.25 | D103: 0.00 | E103: 10.00 | F103: 0.00 | G103: 0.00 | H103: 9.05 | I103: 15.00 | J103: 0.00 | K103: 0.00 | L103: 52.30 | M103: 5.23
A104: Горох | B104: 0.00 | C104: 0.00 | D104: 0.00 | E104: 0.00 | F104: 0.00 | G104: 15.20 | H104: 0.00 | I104: 0.00 | J104: 0.00 | K104: 0.00 | L104: 15.20 | M104: 1.52
A105: Крупа пшенная | B105: 0.00 | C105: 8.00 | D105: 0.00 | E105: 23.00 | F105: 0.00 | G105: 0.00 | H105: 29.00 | I105: 0.00 | J105: 0.00 | K105: 0.00 | L105: 60.00 | M105: 6.00
A106: Крупа ячневая | B106: 0.00 | C106: 0.00 | D106: 0.00 | E106: 0.00 | F106: 0.00 | G106: 0.00 | H106: 0.00 | I106: 0.00 | J106: 0.00 | K106: 0.00 | L106: 0.00 | M106: 0.00
A107: Полба | B107: 0.00 | C107: 0.00 | D107: 0.00 | E107: 0.00 | F107: 19.00 | G107: 0.00 | H107: 0.00 | I107: 0.00 | J107: 0.00 | K107: 0.00 | L107: 19.00 | M107: 1.90
A108: Крупа перловая | B108: 6.00 | C108: 0.00 | D108: 0.00 | E108: 0.00 | F108: 0.00 | G108: 0.00 | H108: 0.00 | I108: 0.00 | J108: 0.00 | K108: 21.60 | L108: 27.60 | M108: 2.76
A109: Крупа геркулесовая | B109: 0.00 | C109: 0.00 | D109: 19.00 | E109: 0.00 | F109: 0.00 | G109: 19.00 | H109: 0.00 | I109: 0.00 | J109: 0.00 | K109: 0.00 | L109: 38.00 | M109: 3.80
A110: Крупа пшеничная | B110: 0.00 | C110: 0.00 | D110: 0.00 | E110: 0.00 | F110: 0.00 | G110: 0.00 | H110: 0.00 | I110: 0.00 | J110: 0.00 | K110: 0.00 | L110: 0.00 | M110: 0.00
A111: Крупа гречневая | B111: 0.00 | C111: 0.00 | D111: 27.50 | E111: 0.00 | F111: 0.00 | G111: 0.00 | H111: 0.00 | I111: 39.00 | J111: 0.00 | K111: 0.00 | L111: 66.50 | M111: 6.65
A112: Картофель | B112: 157.34 | C112: 165.49 | D112: 81.27 | E112: 181.63 | F112: 59.90 | G112: 137.35 | H112: 177.64 | I112: 180.74 | J112: 23.94 | K112: 0.00 | L112: 1165.30 | M112: 116.53
A113: Морковь | B113: 19.53 | C113: 45.00 | D113: 23.62 | E113: 28.25 | F113: 31.37 | G113: 38.53 | H113: 28.25 | I113: 20.00 | J113: 55.75 | K113: 25.98 | L113: 316.28 | M113: 31.63
A114: Лук репчатый | B114: 13.89 | C114: 19.33 | D114: 19.51 | E114: 12.15 | F114: 15.08 | G114: 16.66 | H114: 18.39 | I114: 24.93 | J114: 14.84 | K114: 16.54 | L114: 171.32 | M114: 17.13
A115: Свекла | B115: 0.00 | C115: 38.76 | D115: 52.09 | E115: 0.00 | F115: 0.00 | G115: 0.00 | H115: 38.76 | I115: 32.64 | J115: 0.00 | K115: 27.20 | L115: 189.45 | M115: 18.95
A116: Капуста свежая | B116: 39.75 | C116: 0.00 | D116: 60.50 | E116: 37.50 | F116: 26.25 | G116: 30.37 | H116: 22.50 | I116: 15.00 | J116: 37.50 | K116: 0.00 | L116: 269.37 | M116: 26.94
A117: Икра кабачковая | B117: 0.00 | C117: 0.00 | D117: 0.00 | E117: 0.00 | F117: 0.00 | G117: 0.00 | H117: 0.00 | I117: 0.00 | J117: 0.00 | K117: 0.00 | L117: 0.00 | M117: 0.00
A118: Огурцы соленые | B118: 16.00 | C118: 0.00 | D118: 0.00 | E118: 0.00 | F118: 0.00 | G118: 0.00 | H118: 0.00 | I118: 0.00 | J118: 0.00 | K118: 0.00 | L118: 16.00 | M118: 1.60
A119: Помидоры свежие | B119: 0.00 | C119: 0.00 | D119: 29.10 | E119: 30.60 | F119: 0.00 | G119: 0.00 | H119: 0.00 | I119: 29.10 | J119: 30.60 | K119: 0.00 | L119: 119.40 | M119: 11.94
A120: Огурцы свежие | B120: 0.00 | C120: 0.00 | D120: 0.00 | E120: 0.00 | F120: 0.00 | G120: 0.00 | H120: 0.00 | I120: 0.00 | J120: 0.00 | K120: 0.00 | L120: 0.00 | M120: 0.00
A121: перец | B121: 0.00 | C121: 0.00 | D121: 0.00 | E121: 0.00 | F121: 0.00 | G121: 0.00 | H121: 0.00 | I121: 0.00 | J121: 0.00 | K121: 0.00 | L121: 0.00 | M121: 0.00
A122: Томат-паста | B122: 0.50 | C122: 0.00 | D122: 2.00 | E122: 1.00 | F122: 0.00 | G122: 0.00 | H122: 1.00 | I122: 0.00 | J122: 0.00 | K122: 0.00 | L122: 4.50 | M122: 0.45
A123: Масло сливочное | B123: 12.20 | C123: 15.10 | D123: 13.60 | E123: 11.00 | F123: 13.70 | G123: 14.15 | H123: 18.20 | I123: 12.10 | J123: 23.00 | K123: 14.70 | L123: 147.75 | M123: 14.78
A124: Масло растительное | B124: 12.90 | C124: 3.95 | D124: 12.50 | E124: 6.90 | F124: 7.00 | G124: 8.30 | H124: 7.55 | I124: 8.80 | J124: 8.30 | K124: 5.40 | L124: 81.60 | M124: 8.16
A125: Фрукты свежие | B125: 0.00 | C125: 114.00 | D125: 0.00 | E125: 114.00 | F125: 0.00 | G125: 114.00 | H125: 0.00 | I125: 114.00 | J125: 0.00 | K125: 114.00 | L125: 570.00 | M125: 57.00
A126: Яблоки | B126: 11.40 | C126: 34.00 | D126: 0.00 | E126: 14.67 | F126: 41.70 | G126: 13.28 | H126: 14.67 | I126: 34.00 | J126: 0.00 | K126: 9.12 | L126: 172.84 | M126: 17.28
A127: крыжовник зам. | B127: 0.00 | C127: 0.00 | D127: 0.00 | E127: 0.00 | F127: 0.00 | G127: 0.00 | H127: 0.00 | I127: 0.00 | J127: 0.00 | K127: 0.00 | L127: 0.00 | M127: 0.00
A128: Лимон | B128: 0.00 | C128: 4.10 | D128: 0.00 | E128: 0.00 | F128: 0.00 | G128: 0.00 | H128: 4.10 | I128: 0.00 | J128: 0.00 | K128: 0.00 | L128: 8.20 | M128: 0.82
A129: Ягодная смесь зам. | B129: 0.00 | C129: 0.00 | D129: 0.00 | E129: 0.00 | F129: 0.00 | G129: 0.00 | H129: 0.00 | I129: 0.00 | J129: 0.00 | K129: 0.00 | L129: 0.00 | M129: 0.00
A130: Сок | B130: 125.00 | C130: 0.00 | D130: 125.00 | E130: 0.00 | F130: 125.00 | G130: 0.00 | H130: 125.00 | I130: 0.00 | J130: 125.00 | K130: 0.00 | L130: 625.00 | M130: 62.50
A131: Курага | B131: 0.00 | C131: 0.00 | D131: 0.00 | E131: 0.00 | F131: 0.00 | G131: 0.00 | H131: 0.00 | I131: 0.00 | J131: 0.00 | K131: 0.00 | L131: 0.00 | M131: 0.00
A132: Сухофрукты | B132: 15.30 | C132: 0.00 | D132: 0.00 | E132: 15.30 | F132: 0.00 | G132: 0.00 | H132: 15.30 | I132: 0.00 | J132: 0.00 | K132: 15.30 | L132: 61.20 | M132: 6.12
A133: Урюк | B133: 6.00 | C133: 0.00 | D133: 12.75 | E133: 0.00 | F133: 0.00 | G133: 18.75 | H133: 0.00 | I133: 0.00 | J133: 12.75 | K133: 0.00 | L133: 50.25 | M133: 5.03
A134: повидло фруктовое | B134: 0.00 | C134: 10.00 | D134: 18.80 | E134: 10.00 | F134: 0.00 | G134: 0.00 | H134: 10.00 | I134: 0.00 | J134: 0.00 | K134: 0.00 | L134: 48.80 | M134: 4.88
A135: Шиповник порошок | B135: 0.00 | C135: 0.00 | D135: 0.00 | E135: 2.25 | F135: 0.00 | G135: 0.00 | H135: 0.00 | I135: 0.00 | J135: 2.25 | K135: 0.00 | L135: 4.50 | M135: 0.45
A136: Молоко | B136: 75.00 | C136: 278.28 | D136: 117.00 | E136: 291.78 | F136: 172.20 | G136: 125.00 | H136: 273.28 | I136: 157.40 | J136: 190.90 | K136: 177.20 | L136: 1858.04 | M136: 185.80
A137: Кефир | B137: 0.00 | C137: 0.00 | D137: 0.00 | E137: 0.00 | F137: 114.00 | G137: 0.00 | H137: 0.00 | I137: 0.00 | J137: 0.00 | K137: 114.00 | L137: 228.00 | M137: 22.80
A138: Ряженка | B138: 0.00 | C138: 0.00 | D138: 114.00 | E138: 0.00 | F138: 0.00 | G138: 114.00 | H138: 0.00 | I138: 0.00 | J138: 0.00 | K138: 0.00 | L138: 228.00 | M138: 22.80
A139: Катык | B139: 114.00 | C139: 0.00 | D139: 0.00 | E139: 0.00 | F139: 0.00 | G139: 0.00 | H139: 0.00 | I139: 114.00 | J139: 0.00 | K139: 0.00 | L139: 228.00 | M139: 22.80
A140: Молоко сгущенное | B140: 0.00 | C140: 0.00 | D140: 0.00 | E140: 0.00 | F140: 0.00 | G140: 0.00 | H140: 0.00 | I140: 0.00 | J140: 0.00 | K140: 0.00 | L140: 0.00 | M140: 0.00
A141: Сметана | B141: 5.00 | C141: 3.40 | D141: 12.70 | E141: 17.40 | F141: 0.00 | G141: 0.00 | H141: 10.20 | I141: 8.75 | J141: 5.00 | K141: 0.00 | L141: 62.45 | M141: 6.25
A142: Творог | B142: 0.00 | C142: 85.70 | D142: 0.00 | E142: 94.70 | F142: 0.00 | G142: 0.00 | H142: 121.30 | I142: 0.00 | J142: 73.60 | K142: 0.00 | L142: 375.30 | M142: 37.53
A143: Говядина | B143: 0.00 | C143: 0.00 | D143: 0.00 | E143: 0.00 | F143: 0.00 | G143: 0.00 | H143: 0.00 | I143: 0.00 | J143: 33.80 | K143: 0.00 | L143: 33.80 | M143: 3.38
A144: Фарш из говядины | B144: 34.30 | C144: 11.40 | D144: 0.00 | E144: 30.40 | F144: 11.40 | G144: 11.40 | H144: 0.00 | I144: 98.00 | J144: 0.00 | K144: 29.75 | L144: 226.65 | M144: 22.67
A145: Цыплята | B145: 87.23 | C145: 0.00 | D145: 0.00 | E145: 22.62 | F145: 84.97 | G145: 124.76 | H145: 22.62 | I145: 0.00 | J145: 0.00 | K145: 56.72 | L145: 398.92 | M145: 39.89
A146: Индейка филе | B146: 0.00 | C146: 0.00 | D146: 59.60 | E146: 0.00 | F146: 0.00 | G146: 0.00 | H146: 0.00 | I146: 0.00 | J146: 0.00 | K146: 0.00 | L146: 59.60 | M146: 5.96
A147: фарш птицы | B147: 0.00 | C147: 0.00 | D147: 0.00 | E147: 0.00 | F147: 0.00 | G147: 0.00 | H147: 0.00 | I147: 0.00 | J147: 0.00 | K147: 0.00 | L147: 0.00 | M147: 0.00
A148: Сыр | B148: 0.00 | C148: 5.10 | D148: 0.00 | E148: 5.10 | F148: 0.00 | G148: 5.10 | H148: 0.00 | I148: 5.10 | J148: 0.00 | K148: 5.10 | L148: 25.50 | M148: 2.55
A149: фарш из минтая | B149: 0.00 | C149: 37.50 | D149: 0.00 | E149: 0.00 | F149: 0.00 | G149: 0.00 | H149: 37.50 | I149: 0.00 | J149: 0.00 | K149: 0.00 | L149: 75.00 | M149: 7.50
A150: Кофейный напиток | B150: 0.00 | C150: 0.00 | D150: 0.00 | E150: 1.30 | F150: 0.00 | G150: 0.00 | H150: 1.30 | I150: 0.00 | J150: 0.00 | K150: 1.30 | L150: 3.90 | M150: 0.39
A151: Какао-порошок | B151: 0.00 | C151: 1.30 | D151: 0.00 | E151: 0.00 | F151: 1.30 | G151: 0.00 | H151: 0.00 | I151: 1.30 | J151: 0.00 | K151: 0.00 | L151: 3.90 | M151: 0.39
A152: печенье | B152: 0.00 | C152: 0.00 | D152: 0.00 | E152: 0.00 | F152: 20.00 | G152: 0.00 | H152: 0.00 | I152: 0.00 | J152: 0.00 | K152: 20.00 | L152: 40.00 | M152: 4.00
A153: крекер | B153: 0.00 | C153: 10.00 | D153: 0.00 | E153: 10.00 | F153: 0.00 | G153: 0.00 | H153: 10.00 | I153: 0.00 | J153: 10.00 | K153: 0.00 | L153: 40.00 | M153: 4.00
A154: Соль | B154: 3.25 | C154: 1.73 | D154: 4.30 | E154: 2.30 | F154: 3.50 | G154: 3.44 | H154: 3.53 | I154: 3.80 | J154: 2.70 | K154: 3.50 | L154: 32.05 | M154: 3.21
A155: Крахмал | B155: 0.00 | C155: 0.00 | D155: 0.00 | E155: 0.00 | F155: 0.00 | G155: 0.00 | H155: 0.00 | I155: 0.00 | J155: 0.00 | K155: 0.00 | L155: 0.00 | M155: 0.00
A156: Сухари панировочные | B156: 0.00 | C156: 3.75 | D156: 0.00 | E156: 0.00 | F156: 0.00 | G156: 4.00 | H156: 8.95 | I156: 1.70 | J156: 0.00 | K156: 4.00 | L156: 22.40 | M156: 2.24
A157: кислота лимонная | B157: 0.00 | C157: 0.00 | D157: 0.00 | E157: 0.00 | F157: 0.00 | G157: 0.00 | H157: 0.00 | I157: 0.00 | J157: 0.00 | K157: 0.00 | L157: 0.00 | M157: 0.00
A158: Крупы, бобовые | B158: 23.00 | C158: 35.85 | D158: 46.50 | E158: 37.00 | F158: 50.28 | G158: 34.20 | H158: 38.05 | I158: 54.00 | J158: 27.70 | K158: 40.60 | L158: 387.18 | M158: 38.72
A159: Овощи разные | B159: 89.67 | C159: 103.09 | D159: 186.82 | E159: 109.50 | F159: 72.70 | G159: 85.56 | H159: 108.90 | I159: 121.67 | J159: 138.69 | K159: 69.72 | L159: 1086.32 | M159: 108.63
A160: Фрукты | B160: 11.40 | C160: 152.10 | D160: 0.00 | E160: 128.67 | F160: 41.70 | G160: 127.28 | H160: 18.77 | I160: 148.00 | J160: 0.00 | K160: 123.12 | L160: 751.04 | M160: 75.10
A161: Фрукты сухие | B161: 21.30 | C161: 10.00 | D161: 31.55 | E161: 25.30 | F161: 0.00 | G161: 18.75 | H161: 25.30 | I161: 0.00 | J161: 12.75 | K161: 15.30 | L161: 160.25 | M161: 16.03
A162: Молочные прод. | B162: 189.00 | C162: 278.28 | D162: 231.00 | E162: 291.78 | F162: 286.20 | G162: 239.00 | H162: 273.28 | I162: 271.40 | J162: 190.90 | K162: 291.20 | L162: 2542.04 | M162: 254.20
A163: Говядина | B163: 34.30 | C163: 11.40 | D163: 0.00 | E163: 30.40 | F163: 11.40 | G163: 11.40 | H163: 0.00 | I163: 98.00 | J163: 33.80 | K163: 29.75 | L163: 260.45 | M163: 26.05
A164: птица | B164: 87.23 | C164: 0.00 | D164: 59.60 | E164: 22.62 | F164: 84.97 | G164: 124.76 | H164: 22.62 | I164: 0.00 | J164: 0.00 | K164: 56.72 | L164: 458.52 | M164: 45.85
A165: Макаронные изделия | B165: 38.50 | C165: 0.00 | D165: 0.00 | E165: 0.00 | F165: 6.00 | G165: 38.50 | H165: 0.00 | I165: 0.00 | J165: 12.00 | K165: 0.00 | L165: 95.00 | M165: 9.50
A166: Хлеб пшеничный | B166: 49.00 | C166: 45.00 | D166: 45.00 | E166: 45.00 | F166: 45.00 | G166: 59.40 | H166: 45.00 | I166: 45.00 | J166: 45.00 | K166: 51.60 | L166: 475.00 | M166: 47.50
A167: Кондитерские изделия | B167: 0.00 | C167: 10.00 | D167: 0.00 | E167: 10.00 | F167: 20.00 | G167: 0.00 | H167: 10.00 | I167: 0.00 | J167: 10.00 | K167: 20.00 | L167: 80.00 | M167: 8.00
A168: Сумма

Sheet раскл1-3
C1: Меню-раскладка к примерному 10-дневному меню
C2: для организации питания детей в дошкольных образовательных учреждениях
C3: от 1-3 лет
A5: День 1 - ый
A6: Прием пищи | C6: Выход блюда | D6: Кол - во | E6: Кол - во | F6: Пищевые вещества (г) | I6: Энергетическая | J6: № рецептуры
A7: Наименование блюд | D7: (в гр ) | E7: (в гр ) | I7: ценность
D8: брутто | E8: нетто | F8: белки | G8: жиры | H8: угл-ды | I8: Ккал
B9: ЗАВТРАК
A10: Каша манная молочная с маслом | C10: 150/5 | F10: 7.50 | G10: 7.50 | H10: 18.40 | I10: 171.10 | J10: ТТК №4
B11: Крупа манная | D11: 15.00 | E11: 15.00
B12: Молоко | D12: 75.00 | E12: 75.00
B13: Вода | D13: 57.00 | E13: 57.00
B14: Сахар | D14: 2.00 | E14: 2.00
B15: Соль | D15: 0.80 | E15: 0.80
B16: Масло сливочное | D16: 5.00 | E16: 5.00
A17: Чай с сахаром | C17: 160/4 | F17: 0.05 | G17: 0.01 | H17: 4.42 | I17: 18.00 | J17: № 411 Дели2016
B18: Заварка | D18: 0.2 | E18: 0.2
B19: сахар | D19: 4 | E19: 4
B20: Вода | D20: 160 | E20: 160
A21: Бутерброд с маслом сливочным | C21: 25/5 | F21: 1.9 | G21: 4.4 | H21: 13 | I21: 99 | J21: №1 Дели2010
B22: Батон нарезной | D22: 25 | E22: 25
B23: Масло сливочное | D23: 5 | E23: 5
A24: Итого: | C24: 350 | F24: 9.45 | G24: 11.91 | H24: 35.82 | I24: 288.10
A25: Сок | C25: 125 | D25: 125 | E25: 125 | F25: 0.50 | G25: 0.30 | H25: 13.00 | I25: 51.90 | J25: №399Дели2010
A26: персиковый
A27: Итого: | C27: 125 | F27: 0.50 | G27: 0.30 | H27: 13.00 | I27: 51.90
C28: 474 | F28: 9.95 | G28: 12.21 | H28: 48.82 | I28: 340.00
B29: ОБЕД
A30: Салат из капусты с яблоками | C30: 30 | F30: 0.60 | G30: 1.38 | H30: 3.00 | I30: 26.80 | J30: №7 Партнер 2014
B31: Капуста свежая | D31: 39.75 | E31: 31.8
B32: масса стертой капусты | E32: 20
B33: Яблоки | D33: 11.4 | E33: 8.4
B34: Сахар | D34: 0.6 | E34: 0.6
B35: Масло растительное | D35: 0.9 | E35: 0.9
B36: соль | D36: 0.3 | E36: 0.3
A37: Рассольник ленинградский с курицей, со сметаной | C37: 150/10/5 | F37: 4 | G37: 6 | H37: 6.3 | I37: 93 | J37: №82 Дели 2016
B38: цыплята | D38: 22.62 | E38: 14.7
B39: Картофель | D39: 59.85 | E39: 45
B40: Крупа перловая | D40: 6 | E40: 6
B41: Морковь | D41: 7.5 | E41: 6
B42: Лук репчатый | D42: 3.57 | E42: 3
B43: Масло растительное | D43: 2 | E43: 2
B44: Огурцы соленые | D44: 16 | E44: 9
B45: Сметана | D45: 5 | E45: 5
B46: Соль | D46: 0.8 | E46: 0.8
B47: Вода | D47: 114 | E47: 114
A48: Тефтели из говядины с соусом томатным | C48: 50/5 | F48: 4.4 | G48: 4.6 | H48: 3.5 | I48: 73 | J48: ТТК № 1152 от 09.10.2020 и №364 С-Петербург 2008
B49: фарш из говядины | D49: 34.3 | E49: 34.3
B50: Хлеб пшеничный 1с | D50: 4 | E50: 4
B51: Вода | D51: 4 | E51: 4
B52: Лук репчатый | D52: 10.2 | E52: 8.6
B53: Крупа манная | D53: 2 | E53: 2
B54: Соль | D54: 0.3 | E54: 0.3
B55: масса полуфабриката | E55: 53
B56: Масло растительное | D56: 1 | E56: 1
B57: соус томатный | E57: 5.0
B58: вода | D58: 4.5 | E58: 4.5
B59: Масло растительное | D59: 0.2 | E59: 0.2
B60: Мука пшеничная | D60: 0.2 | E60: 0.2
B61: морковь | D61: 0.4 | E61: 0.3
B62: Лук репчатый | D62: 0.1 | E62: 0.1
B63: Томат-паста | D63: 0.5 | E63: 0.5
B64: Масло растительное | D64: 0.1 | E64: 0.1
B65: соль | D65: 0.1 | E65: 0.1
B66: сахар | D66: 0.1 | E66: 0.1
A67: Макароны отварные | C67: 110 | F67: 4.10 | G67: 3.00 | H67: 25.00 | I67: 143.40 | J67: №218 Дели 2016
B68: макаронные изделия | D68: 38.5 | E68: 38.5
B69: Масло сливочное | D69: 2.2 | E69: 2.2
B70: Соль | D70: 0.4 | E70: 0.4
A71: Компот из сухофруктов | C71: 150 | F71: 0.60 | G71: 0.00 | H71: 15.00 | I71: 62.50 | J71: №394, Дели 2016
B72: сухофрукты | D72: 15.3 | E72: 15
B73: вода | D73: 150 | E73: 150
B74: Сахар | D74: 4 | E74: 4
A75: Хлеб сельский | C75: 30 | D75: 30 | E75: 30 | F75: 1.5 | G75: 0.3 | H75: 14.3 | I75: 66
A76: Итого: | C76: 540.00 | F76: 15.20 | G76: 15.28 | H76: 67.10 | I76: 464.70
B77: ПОЛДНИК
A78: Булочка Домашняя | C78: 40 | F78: 3.90 | G78: 3.50 | H78: 22.40 | I78: 137.00 | J78: №258 Партнер г. Уфа 2014
B79: Мука пшеничная | D79: 27.00 | E79: 27.00
B80: Сахар | D80: 5.60 | E80: 5.60
B81: вода | D81: 11.20 | E81: 11.20
B82: Масло растительное | D82: 5.60 | E82: 5.60
B83: Дрожжи сухие | D83: 0.16 | E83: 0.16
B84: Соль | D84: 0.20 | E84: 0.20
B85: Яйцо | D85: 0.80 | E85: 0.80
B86: Масса полуфабриката | E86: 48.40
B87: Масло растительное | D87: 0.10 | E87: 0.10
A88: Катык | C88: 110 | F88: 3.00 | G88: 2.70 | H88: 4.50 | I88: 54.30 | J88: №401Дели2010
B89: катык | D89: 114 | E89: 110
A90: Рагу с курицей | C90: 30/100 | F90: 4.60 | G90: 8.20 | H90: 13.00 | I90: 144.00 | J90: ТТК №63
B91: цыплята | D91: 64.61 | E91: 42.00
B92: Картофель | D92: 97.49 | E92: 73.30
B93: Морковь | D93: 11.66 | E93: 9.33
B94: Соль | D94: 0.40 | E94: 0.40
B95: вода | D95: 26.70 | E95: 26.70
B96: Масло растительное | D96: 3.00 | E96: 3.00
B97: Мука пшеничная | D97: 1.70 | E97: 1.70
B98: сахар | D98: 0.30 | E98: 0.30
A99: Чай фруктовый | C99: 150/6 | F99: 0.1 | G99: 0.07 | H99: 13.5 | I99: 55 | J99: ТТК №56
B100: Заварка | D100: 0.2 | E100: 0.2
B101: урюк | D101: 6 | E101: 6
B102: сахар | D102: 6 | E102: 6
B103: Вода | D103: 150 | E103: 150
A104: Хлеб пшеничный 1с | C104: 20 | D104: 20 | E104: 20 | F104: 1.6 | G104: 0.2 | H104: 9.8 | I104: 47
A105: Итого: | C105: 456.00 | F105: 13.20 | G105: 14.67 | H105: 63.20 | I105: 437.30
A106: ВСЕГО: | C106: 1471.00 | F106: 38.35 | G106: 42.16 | H106: 179.12 | I106: 1242.00
A108: День 2- ой
A109: Прием пищи | C109: Выход блюда | D109: Кол - во | E109: Кол - во | F109: Пищевые вещества (г) | I109: Энергетическая | J109: № рецептуры
A110: Наименование блюд | D110: (в гр ) | E110: (в гр ) | I110: ценность
D111: брутто | E111: нетто | F111: белки | G111: жиры | H111: угл-ды | I111: Ккал
B112: ЗАВТРАК
A113: Каша "Дружба" молочная с маслом | C113: 150/5 | F113: 3.90 | G113: 4.38 | H113: 19.00 | I113: 131.00 | J113: ТТК №7
B114: Крупа рисовая | D114: 11 | E114: 11
B115: Крупа пшенная | D115: 8 | E115: 8
B116: Молоко | D116: 65 | E116: 65
B117: Вода | D117: 65 | E117: 65
B118: Сахар | D118: 0.75 | E118: 0.75
B119: Соль | D119: 0.5 | E119: 0.5
B120: Масло сливочное | D120: 5 | E120: 5
A121: Какао с молоком | C121: 160 | F121: 2.00 | G121: 2.20 | H121: 11.30 | I121: 73.30 | J121: №272 Парнер г. Уфа 2014
B122: Какао-порошок | D122: 1.3 | E122: 1.3
B123: Сахар | D123: 7 | E123: 7
B124: Молоко | D124: 80 | E124: 80
B125: вода | D125: 90 | E125: 90
A126: Бутерброд с сыром, маслом | C126: 25/5/3 | F126: 3.50 | G126: 5.95 | H126: 12.90 | I126: 119.60 | J126: №3Дели2010
B127: Батон нарезной | D127: 25 | E127: 25
B128: Сыр | D128: 5.1 | E128: 5
B129: Масло сливочное | D129: 3 | E129: 3
A130: Итого: | C130: 350 | F130: 9.40 | G130: 12.33 | H130: 43.20 | I130: 323.90
A131: Фрукты свежие | C131: 100 | D131: 114 | E131: 100 | F131: 1.00 | G131: 0.00 | H131: 8.10 | I131: 36.00 | J131: № 368 Дели 2010
A132: апельсин
A133: Итого: | C133: 100 | F133: 1.00 | G133: 0.00 | H133: 8.10 | I133: 36.00
C134: 450 | F134: 10.40 | G134: 12.33 | H134: 51.30 | I134: 359.90
B135: ОБЕД
A136: Салат из свеклы | C136: 30 | F136: 0.36 | G136: 1.50 | H136: 2.52 | I136: 25.00 | J136: №34, Дели2016
B137: Свекла | D137: 38.76 | E137: 28.50
B138: Масло растительное | D138: 1.50 | E138: 1.50
A139: Суп картофельный с клецками с мясными фрикадельками | C139: 150/10 | F139: 3.00 | G139: 6.40 | H139: 23.60 | I139: 164.00 | J139: №38 Пермь2001
B140: Фарш из говядины | D140: 11.4 | E140: 11.4
B141: Лук репчатый | D141: 1.19 | E141: 1
B142: Яйцо | D142: 1 | E142: 1
B143: Вода для фарша | D143: 1.14 | E143: 1.14
B144: Масса полуфабриката | E144: 13.4
B145: Картофель | D145: 39.9 | E145: 30
B146: Лук репчатый | D146: 7.14 | E146: 6
B147: Морковь | D147: 7.5 | E147: 6
B148: Масло растительное | D148: 1.2 | E148: 1.2
B149: соль | D149: 0,7 | E149: 0.7
B150: вода | D150: 114.00 | E150: 114.00
B151: клецки | E151: 20.00
B152: Мука пшеничная | D152: 6.60 | E152: 6.60
B153: Яйцо | D153: 1.70 | E153: 1.70
B154: Масло сливочное | D154: 0.80 | E154: 0.80
B155: вода | D155: 10.00 | E155: 10.00
B156: масса теста | E156: 18.70
A157: Биточки рубленые из рыбы | C157: 50 | F157: 8.00 | G157: 4.90 | H157: 4.50 | I157: 94.00 | J157: ТТК №3 Д
B158: фарш из минтая | D158: 37.50 | E158: 37.50
B159: Яйцо | D159: 7.50 | E159: 7.50
B160: крупа манная | D160: 1.25 | E160: 1.25
B161: Лук репчатый | D161: 11.00 | E161: 9.25
B162: вода | D162: 3.75 | E162: 3.75
B163: Соль | D163: 0.33 | E163: 0.33
B164: сухари панировочные | D164: 3.75 | E164: 3.75
B165: Масло растительное | D165: 1.25 | E165: 1.25
B166: Сахар | D166: 0.14 | E166: 0.14
B167: Масса полуфабриката | E167: 60.00
A168: Пюре Картофельное | C168: 110 | F168: 2.20 | G168: 3.30 | H168: 15.40 | I168: 100.10 | J168: №137 Партнер 2014
B169: Картофель | D169: 125.59 | E169: 94.43
B170: Молоко | D170: 17.38 | E170: 16.50
B171: Масло сливочное | D171: 3.00 | E171: 3.00
B172: Соль | D172: 0.90 | E172: 0.90
A173: Компот из свежих яблок | C173: 150 | F173: 0.10 | G173: 0.10 | H173: 10.20 | I173: 42.10 | J173: № 390 Дели 2016
B174: Яблоки | D174: 34 | E174: 30
B175: Сахар | D175: 4 | E175: 4
B176: Вода | D176: 130 | E176: 130
A177: Хлеб сельский | C177: 30 | D177: 30 | E177: 30 | F177: 1.5 | G177: 0.3 | H177: 14.3 | I177: 66
A178: Итого: | C178: 530.00 | F178: 15.16 | G178: 16.50 | H178: 70.52 | I178: 491.20
B179: ПОЛДНИК
A180: Кондитерские изделия | C180: 10 | F180: 1.30 | G180: 2.20 | H180: 10.00 | I180: 57.00
A181: крекер | D181: 10 | E181: 10
A182: Молоко кипяченое | C182: 110 | F182: 2.50 | G182: 2.75 | H182: 4.00 | I182: 51.00 | J182: №419 Дели2016
B183: молоко | D183: 115.90 | E183: 110.00
A184: Салат из моркови | C184: 30 | F184: 0.60 | G184: 0.05 | H184: 3.00 | I184: 14.00 | J184: №42 Дели2016г
B185: Морковь | D185: 37.5 | E185: 30
B186: Сахар | D186: 0.3 | E186: 0.3
A187: Пудинг из творога с рисом с повидлом | C187: 130 | F187: 6.00 | G187: 8.50 | H187: 24.00 | I187: 196.00 | J187: № 250 Дели 2016
B188: Творог | D188: 85.7 | E188: 84.5
B189: Крупа рисовая | D189: 15.6 | E189: 15.6
B190: Сахар | D190: 7.8 | E190: 7.8
B191: Яйцо | D191: 6.76 | E191: 6.76
B192: Масло сливочное | D192: 3.3 | E192: 3.3
B193: Сметана | D193: 3.4 | E193: 3.4
B194: Масса полуфабриката | E194: 133
B195: Повидло фруктовое | D195: 10 | E195: 10
A196: Чай с сахаром и лимоном | C196: 150/4/4 | F196: 0.09 | G196: 0.01 | H196: 8.50 | I196: 34.50 | J196: №393Дели2010
B197: Заварка | D197: 0.3 | E197: 0.3
B198: Сахар | D198: 4 | E198: 4
B199: лимон | D199: 4.1 | E199: 4
B200: Вода | D200: 150.0 | E200: 150.0
A201: Хлеб пшеничный 1с | C201: 20 | D201: 20 | E201: 20 | F201: 1.6 | G201: 0.2 | H201: 9.8 | I201: 47
A202: Итого: | C202: 458 | F202: 12.09 | G202: 13.71 | H202: 59.30 | I202: 399.50
... 751 more rows

Sheet свод 3-7
B1: Расход продуктов ДОУ
D2: от 3 до 7 лет | K2: НЕТТО
A3: Наименов. прод. | B3: 1 | C3: 2 | D3: 3 | E3: 4 | F3: 5 | G3: 6 | H3: 7 | I3: 8 | J3: 9 | K3: 10 | L3: Кол-во | M3: Среднее
A5: Сахар | B5: 28.58 | C5: 28.70 | D5: 19.15 | E5: 30.80 | F5: 19.80 | G5: 24.34 | H5: 31.40 | I5: 25.00 | J5: 31.50 | K5: 20.70 | L5: 259.97 | M5: 26.00
A6: Заварка | B6: 0.60 | C6: 0.35 | D6: 0.60 | E6: 0.00 | F6: 0.30 | G6: 0.60 | H6: 0.35 | I6: 0.30 | J6: 0.30 | K6: 0.30 | L6: 3.70 | M6: 0.37
A7: Яйцо | B7: 1.00 | C7: 21.88 | D7: 2.40 | E7: 7.14 | F7: 106.50 | G7: 6.33 | H7: 16.50 | I7: 2.58 | J7: 10.50 | K7: 112.50 | L7: 287.33 | M7: 28.73
A8: Дрожжи сухие | B8: 0.20 | C8: 0.00 | D8: 0.20 | E8: 0.00 | F8: 0.00 | G8: 0.30 | H8: 0.00 | I8: 0.25 | J8: 0.00 | K8: 0.00 | L8: 0.95 | M8: 0.10
A9: Батон нарезной | B9: 30.00 | C9: 30.00 | D9: 30.00 | E9: 30.00 | F9: 30.00 | G9: 30.00 | H9: 30.00 | I9: 30.00 | J9: 30.00 | K9: 30.00 | L9: 300.00 | M9: 30.00
A10: Хлеб пшеничный 1с | B10: 29.00 | C10: 23.00 | D10: 23.00 | E10: 23.00 | F10: 23.00 | G10: 35.00 | H10: 23.00 | I10: 23.00 | J10: 23.00 | K10: 32.00 | L10: 257.00 | M10: 25.70
A11: Хлеб сельский | B11: 37.50 | C11: 37.50 | D11: 37.50 | E11: 37.50 | F11: 37.50 | G11: 37.50 | H11: 37.50 | I11: 37.50 | J11: 37.50 | K11: 37.50 | L11: 375.00 | M11: 37.50
A12: Мука пшеничная | B12: 36.40 | C12: 8.30 | D12: 32.72 | E12: 0.80 | F12: 0.00 | G12: 26.80 | H12: 0.40 | I12: 36.30 | J12: 40.50 | K12: 15.00 | L12: 197.22 | M12: 19.72
A13: Кисель-концентрат | B13: 0.00 | C13: 0.00 | D13: 0.00 | E13: 0.00 | F13: 0.00 | G13: 0.00 | H13: 0.00 | I13: 0.00 | J13: 0.00 | K13: 0.00 | L13: 0.00 | M13: 0.00
A14: Макаронные изделия | B14: 45.50 | C14: 0.00 | D14: 0.00 | E14: 0.00 | F14: 0.00 | G14: 45.50 | H14: 0.00 | I14: 0.00 | J14: 0.00 | K14: 0.00 | L14: 91.00 | M14: 9.10
A15: Вермишель | B15: 0.00 | C15: 0.00 | D15: 0.00 | E15: 0.00 | F15: 8.00 | G15: 0.00 | H15: 0.00 | I15: 0.00 | J15: 14.00 | K15: 0.00 | L15: 22.00 | M15: 2.20
A16: Крупа рисовая | B16: 0.00 | C16: 33.00 | D16: 0.00 | E16: 5.00 | F16: 38.50 | G16: 0.00 | H16: 0.00 | I16: 0.00 | J16: 45.60 | K16: 25.00 | L16: 147.10 | M16: 14.71
A17: Крупа кукурузная | B17: 0.00 | C17: 0.00 | D17: 0.00 | E17: 0.00 | F17: 0.00 | G17: 0.00 | H17: 0.00 | I17: 0.00 | J17: 0.00 | K17: 0.00 | L17: 0.00 | M17: 0.00
A18: Крупа манная | B18: 23.00 | C18: 1.75 | D18: 0.00 | E18: 11.40 | F18: 0.00 | G18: 0.00 | H18: 10.75 | I18: 20.00 | J18: 0.00 | K18: 0.00 | L18: 66.90 | M18: 6.69
A19: Горох | B19: 0.00 | C19: 0.00 | D19: 0.00 | E19: 0.00 | F19: 0.00 | G19: 20.00 | H19: 0.00 | I19: 0.00 | J19: 0.00 | K19: 0.00 | L19: 20.00 | M19: 2.00
A20: Крупа пшенная | B20: 0.00 | C20: 11.00 | D20: 0.00 | E20: 30.00 | F20: 0.00 | G20: 0.00 | H20: 38.00 | I20: 0.00 | J20: 0.00 | K20: 0.00 | L20: 79.00 | M20: 7.90
A21: Крупа ячневая | B21: 0.00 | C21: 0.00 | D21: 0.00 | E21: 0.00 | F21: 0.00 | G21: 0.00 | H21: 0.00 | I21: 0.00 | J21: 0.00 | K21: 0.00 | L21: 0.00 | M21: 0.00
A22: Полба | B22: 0.00 | C22: 0.00 | D22: 0.00 | E22: 0.00 | F22: 25.00 | G22: 0.00 | H22: 0.00 | I22: 0.00 | J22: 0.00 | K22: 0.00 | L22: 25.00 | M22: 2.50
A23: Крупа перловая | B23: 8.00 | C23: 0.00 | D23: 0.00 | E23: 0.00 | F23: 0.00 | G23: 0.00 | H23: 0.00 | I23: 0.00 | J23: 0.00 | K23: 25.50 | L23: 33.50 | M23: 3.35
A24: Крупа геркулесовая | B24: 0.00 | C24: 0.00 | D24: 25.00 | E24: 0.00 | F24: 0.00 | G24: 25.00 | H24: 0.00 | I24: 0.00 | J24: 0.00 | K24: 0.00 | L24: 50.00 | M24: 5.00
A25: Крупа пшеничная | B25: 0.00 | C25: 0.00 | D25: 0.00 | E25: 0.00 | F25: 0.00 | G25: 0.00 | H25: 0.00 | I25: 0.00 | J25: 0.00 | K25: 0.00 | L25: 0.00 | M25: 0.00
A26: Крупа гречневая | B26: 0.00 | C26: 0.00 | D26: 32.50 | E26: 0.00 | F26: 0.00 | G26: 0.00 | H26: 0.00 | I26: 46.30 | J26: 0.00 | K26: 0.00 | L26: 78.80 | M26: 7.88
A27: Картофель | B27: 148.00 | C27: 151.60 | D27: 76.10 | E27: 135.60 | F27: 60.00 | G27: 128.00 | H27: 131.60 | I27: 159.00 | J27: 24.00 | K27: 0.00 | L27: 1013.90 | M27: 101.39
A28: Морковь | B28: 19.80 | C28: 58.00 | D28: 23.20 | E28: 35.80 | F28: 34.80 | G28: 41.70 | H28: 35.20 | I28: 19.78 | J28: 68.40 | K28: 25.00 | L28: 361.68 | M28: 36.17
A29: Лук репчатый | B29: 16.20 | C29: 22.50 | D29: 20.30 | E29: 13.40 | F29: 16.50 | G29: 19.50 | H29: 21.20 | I29: 25.73 | J29: 16.00 | K29: 18.75 | L29: 190.08 | M29: 19.01
A30: Свекла | B30: 0.00 | C30: 47.50 | D30: 51.00 | E30: 0.00 | F30: 0.00 | G30: 0.00 | H30: 47.50 | I30: 32.00 | J30: 0.00 | K30: 33.30 | L30: 211.30 | M30: 21.13
A31: Капуста свежая | B31: 53.00 | C31: 0.00 | D31: 57.20 | E31: 40.00 | F31: 35.00 | G31: 40.50 | H31: 24.00 | I31: 16.00 | J31: 40.00 | K31: 0.00 | L31: 305.70 | M31: 30.57
A32: Икра кабачковая | B32: 0.00 | C32: 0.00 | D32: 0.00 | E32: 0.00 | F32: 0.00 | G32: 0.00 | H32: 0.00 | I32: 0.00 | J32: 0.00 | K32: 0.00 | L32: 0.00 | M32: 0.00
A33: Огурцы соленые | B33: 12.00 | C33: 0.00 | D33: 0.00 | E33: 0.00 | F33: 0.00 | G33: 0.00 | H33: 0.00 | I33: 0.00 | J33: 0.00 | K33: 0.00 | L33: 12.00 | M33: 1.20
A34: Помидоры свежие | B34: 0.00 | C34: 0.00 | D34: 47.50 | E34: 50.00 | F34: 0.00 | G34: 0.00 | H34: 0.00 | I34: 47.50 | J34: 50.00 | K34: 0.00 | L34: 195.00 | M34: 19.50
A35: Огурцы свежие | B35: 0.00 | C35: 0.00 | D35: 0.00 | E35: 0.00 | F35: 0.00 | G35: 0.00 | H35: 0.00 | I35: 0.00 | J35: 0.00 | K35: 0.00 | L35: 0.00 | M35: 0.00
A36: перец | B36: 0.00 | C36: 0.00 | D36: 0.00 | E36: 0.00 | F36: 0.00 | G36: 0.00 | H36: 0.00 | I36: 0.00 | J36: 0.00 | K36: 0.00 | L36: 0.00 | M36: 0.00
A37: Томат-паста | B37: 1.00 | C37: 0.00 | D37: 4.00 | E37: 2.00 | F37: 0.00 | G37: 0.00 | H37: 1.00 | I37: 1.00 | J37: 0.00 | K37: 0.00 | L37: 9.00 | M37: 0.90
A38: Масло сливочное | B38: 12.60 | C38: 15.90 | D38: 14.40 | E38: 11.00 | F38: 14.00 | G38: 15.04 | H38: 19.00 | I38: 13.00 | J38: 24.00 | K38: 16.00 | L38: 154.94 | M38: 15.49
A39: Масло растительное | B39: 18.30 | C39: 5.70 | D39: 17.00 | E39: 8.80 | F39: 9.20 | G39: 12.50 | H39: 10.60 | I39: 11.96 | J39: 10.00 | K39: 6.50 | L39: 110.56 | M39: 11.06
A40: Фрукты свежие | B40: 0.00 | C40: 100.00 | D40: 0.00 | E40: 100.00 | F40: 0.00 | G40: 100.00 | H40: 0.00 | I40: 100.00 | J40: 0.00 | K40: 100.00 | L40: 500.00 | M40: 50.00
A41: Яблоки | B41: 14.00 | C41: 36.00 | D41: 0.00 | E41: 21.50 | F41: 47.25 | G41: 14.56 | H41: 21.50 | I41: 36.00 | J41: 0.00 | K41: 13.30 | L41: 204.11 | M41: 20.41
A42: крыжовник зам. | B42: 0.00 | C42: 0.00 | D42: 0.00 | E42: 0.00 | F42: 0.00 | G42: 0.00 | H42: 0.00 | I42: 0.00 | J42: 0.00 | K42: 0.00 | L42: 0.00 | M42: 0.00
A43: Лимон | B43: 0.00 | C43: 5.00 | D43: 0.00 | E43: 0.00 | F43: 0.00 | G43: 0.00 | H43: 5.00 | I43: 0.00 | J43: 0.00 | K43: 0.00 | L43: 10.00 | M43: 1.00
A44: Ягодная смесь зам. | B44: 0.00 | C44: 0.00 | D44: 0.00 | E44: 0.00 | F44: 0.00 | G44: 0.00 | H44: 0.00 | I44: 0.00 | J44: 0.00 | K44: 0.00 | L44: 0.00 | M44: 0.00
A45: Сок | B45: 180.00 | C45: 0.00 | D45: 180.00 | E45: 0.00 | F45: 180.00 | G45: 0.00 | H45: 180.00 | I45: 0.00 | J45: 180.00 | K45: 0.00 | L45: 900.00 | M45: 90.00
A46: Курага | B46: 0.00 | C46: 0.00 | D46: 0.00 | E46: 0.00 | F46: 0.00 | G46: 0.00 | H46: 0.00 | I46: 0.00 | J46: 0.00 | K46: 0.00 | L46: 0.00 | M46: 0.00
A47: Сухофрукты | B47: 18.00 | C47: 0.00 | D47: 0.00 | E47: 18.00 | F47: 0.00 | G47: 0.00 | H47: 18.00 | I47: 0.00 | J47: 0.00 | K47: 18.00 | L47: 72.00 | M47: 7.20
A48: Урюк | B48: 7.20 | C48: 0.00 | D48: 15.00 | E48: 0.00 | F48: 0.00 | G48: 22.20 | H48: 0.00 | I48: 0.00 | J48: 15.00 | K48: 0.00 | L48: 59.40 | M48: 5.94
A49: повидло фруктовое | B49: 0.00 | C49: 20.00 | D49: 23.50 | E49: 20.00 | F49: 0.00 | G49: 0.00 | H49: 20.00 | I49: 0.00 | J49: 0.00 | K49: 0.00 | L49: 83.50 | M49: 8.35
A50: Шиповник порошок | B50: 0.00 | C50: 0.00 | D50: 0.00 | E50: 3.00 | F50: 0.00 | G50: 0.00 | H50: 0.00 | I50: 0.00 | J50: 3.00 | K50: 0.00 | L50: 6.00 | M50: 0.60
A51: Молоко | B51: 100.00 | C51: 315.50 | D51: 148.00 | E51: 338.90 | F51: 218.00 | G51: 158.00 | H51: 317.50 | I51: 193.00 | J51: 220.00 | K51: 218.00 | L51: 2226.90 | M51: 222.69
A52: Кефир | B52: 0.00 | C52: 0.00 | D52: 0.00 | E52: 0.00 | F52: 120.00 | G52: 0.00 | H52: 0.00 | I52: 0.00 | J52: 0.00 | K52: 120.00 | L52: 240.00 | M52: 24.00
A53: Ряженка | B53: 0.00 | C53: 0.00 | D53: 120.00 | E53: 0.00 | F53: 0.00 | G53: 120.00 | H53: 0.00 | I53: 0.00 | J53: 0.00 | K53: 0.00 | L53: 240.00 | M53: 24.00
A54: Катык | B54: 120.00 | C54: 0.00 | D54: 0.00 | E54: 0.00 | F54: 0.00 | G54: 0.00 | H54: 0.00 | I54: 120.00 | J54: 0.00 | K54: 0.00 | L54: 240.00 | M54: 24.00
A55: Молоко сгущенное | B55: 0.00 | C55: 0.00 | D55: 0.00 | E55: 0.00 | F55: 0.00 | G55: 0.00 | H55: 0.00 | I55: 0.00 | J55: 0.00 | K55: 0.00 | L55: 0.00 | M55: 0.00
A56: Сметана | B56: 5.00 | C56: 3.90 | D56: 15.00 | E56: 19.28 | F56: 0.00 | G56: 0.00 | H56: 11.00 | I56: 10.00 | J56: 6.00 | K56: 0.00 | L56: 70.18 | M56: 7.02
A57: Творог | B57: 0.00 | C57: 97.50 | D57: 0.00 | E57: 107.14 | F57: 0.00 | G57: 0.00 | H57: 138.00 | I57: 0.00 | J57: 83.75 | K57: 0.00 | L57: 426.39 | M57: 42.64
A58: Говядина | B58: 0.00 | C58: 0.00 | D58: 0.00 | E58: 0.00 | F58: 0.00 | G58: 0.00 | H58: 0.00 | I58: 0.00 | J58: 52.00 | K58: 0.00 | L58: 52.00 | M58: 5.20
A59: Фарш из говядины | B59: 48.00 | C59: 17.10 | D59: 0.00 | E59: 38.00 | F59: 17.10 | G59: 17.10 | H59: 0.00 | I59: 118.10 | J59: 0.00 | K59: 41.70 | L59: 297.10 | M59: 29.71
A60: Цыплята | B60: 78.00 | C60: 0.00 | D60: 0.00 | E60: 22.00 | F60: 68.00 | G60: 111.00 | H60: 22.00 | I60: 0.00 | J60: 0.00 | K60: 53.03 | L60: 354.03 | M60: 35.40
A61: индейка филе | B61: 0.00 | C61: 0.00 | D61: 64.00 | E61: 0.00 | F61: 0.00 | G61: 0.00 | H61: 0.00 | I61: 0.00 | J61: 0.00 | K61: 0.00 | L61: 64.00 | M61: 6.40
A62: Фарш птицы | B62: 0.00 | C62: 0.00 | D62: 0.00 | E62: 0.00 | F62: 0.00 | G62: 0.00 | H62: 0.00 | I62: 0.00 | J62: 0.00 | K62: 0.00 | L62: 0.00 | M62: 0.00
A63: Сыр | B63: 0.00 | C63: 7.00 | D63: 0.00 | E63: 7.00 | F63: 0.00 | G63: 7.00 | H63: 0.00 | I63: 7.00 | J63: 0.00 | K63: 7.00 | L63: 35.00 | M63: 3.50
A64: фарш из минтая | B64: 0.00 | C64: 52.50 | D64: 0.00 | E64: 0.00 | F64: 0.00 | G64: 0.00 | H64: 52.50 | I64: 0.00 | J64: 0.00 | K64: 0.00 | L64: 105.00 | M64: 10.50
A65: Кофейный напиток | B65: 0.00 | C65: 0.00 | D65: 0.00 | E65: 1.50 | F65: 0.00 | G65: 0.00 | H65: 1.50 | I65: 0.00 | J65: 0.00 | K65: 1.50 | L65: 4.50 | M65: 0.45
A66: Какао-порошок | B66: 0.00 | C66: 1.50 | D66: 0.00 | E66: 0.00 | F66: 1.50 | G66: 0.00 | H66: 0.00 | I66: 1.50 | J66: 0.00 | K66: 0.00 | L66: 4.50 | M66: 0.45
A67: печенье | B67: 0.00 | C67: 0.00 | D67: 0.00 | E67: 0.00 | F67: 30.00 | G67: 0.00 | H67: 0.00 | I67: 0.00 | J67: 20.00 | K67: 30.00 | L67: 80.00 | M67: 8.00
A68: крекер | B68: 0.00 | C68: 10.00 | D68: 0.00 | E68: 0.00 | F68: 0.00 | G68: 0.00 | H68: 10.00 | I68: 0.00 | J68: 0.00 | K68: 0.00 | L68: 20.00 | M68: 2.00
A69: Соль | B69: 5.20 | C69: 3.50 | D69: 5.20 | E69: 3.70 | F69: 3.90 | G69: 4.50 | H69: 4.30 | I69: 6.20 | J69: 3.70 | K69: 4.30 | L69: 44.50 | M69: 4.45
A70: Крахмал | B70: 0.00 | C70: 13.50 | D70: 0.00 | E70: 0.00 | F70: 0.00 | G70: 13.50 | H70: 0.00 | I70: 0.00 | J70: 0.00 | K70: 0.00 | L70: 27.00 | M70: 2.70
A71: Сухари панировочные | B71: 0.00 | C71: 5.00 | D71: 0.00 | E71: 0.00 | F71: 0.00 | G71: 6.00 | H71: 11.00 | I71: 2.00 | J71: 0.00 | K71: 5.80 | L71: 29.80 | M71: 2.98
A72: Напиток витаминный | B72: 0.00 | C72: 0.00 | D72: 0.00 | E72: 0.00 | F72: 0.00 | G72: 0.00 | H72: 0.00 | I72: 0.00 | J72: 0.00 | K72: 0.00 | L72: 0.00 | M72: 0.00
A73: Крупы, бобовые | B73: 31.00 | C73: 45.75 | D73: 57.50 | E73: 46.40 | F73: 63.50 | G73: 45.00 | H73: 48.75 | I73: 66.30 | J73: 45.60 | K73: 50.50 | L73: 500.30 | M73: 50.03
A74: Овощи разные | B74: 102.00 | C74: 128.00 | D74: 203.20 | E74: 141.20 | F74: 86.30 | G74: 101.70 | H74: 128.90 | I74: 142.01 | J74: 174.40 | K74: 77.05 | L74: 1284.76 | M74: 128.48
A75: Фрукты | B75: 14.00 | C75: 141.00 | D75: 0.00 | E75: 121.50 | F75: 47.25 | G75: 114.56 | H75: 26.50 | I75: 136.00 | J75: 0.00 | K75: 113.30 | L75: 714.11 | M75: 71.41
A76: Фрукты сухие | B76: 25.20 | C76: 20.00 | D76: 38.50 | E76: 41.00 | F76: 0.00 | G76: 22.20 | H76: 38.00 | I76: 0.00 | J76: 18.00 | K76: 18.00 | L76: 220.90 | M76: 22.09
A77: Молочные прод. | B77: 220.00 | C77: 315.50 | D77: 268.00 | E77: 338.90 | F77: 338.00 | G77: 278.00 | H77: 317.50 | I77: 313.00 | J77: 220.00 | K77: 338.00 | L77: 2946.90 | M77: 294.69
A78: Говядина | B78: 48.00 | C78: 17.10 | D78: 0.00 | E78: 38.00 | F78: 17.10 | G78: 17.10 | H78: 0.00 | I78: 118.10 | J78: 52.00 | K78: 41.70 | L78: 349.10 | M78: 34.91
A79: Птица | B79: 78.00 | C79: 0.00 | D79: 64.00 | E79: 22.00 | F79: 68.00 | G79: 111.00 | H79: 22.00 | I79: 0.00 | J79: 0.00 | K79: 53.03 | L79: 418.03 | M79: 41.80
A80: Макаронные изделия | B80: 45.50 | C80: 0.00 | D80: 0.00 | E80: 0.00 | F80: 8.00 | G80: 45.50 | H80: 0.00 | I80: 0.00 | J80: 14.00 | K80: 0.00 | L80: 113.00 | M80: 11.30
A81: Хлеб пшеничный | B81: 59.00 | C81: 53.00 | D81: 53.00 | E81: 53.00 | F81: 53.00 | G81: 65.00 | H81: 53.00 | I81: 53.00 | J81: 53.00 | K81: 62.00 | L81: 557.00 | M81: 55.70
A82: Кондитерские изделия | B82: 0.00 | C82: 10.00 | D82: 0.00 | E82: 0.00 | F82: 30.00 | G82: 0.00 | H82: 10.00 | I82: 0.00 | J82: 20.00 | K82: 30.00 | L82: 100.00 | M82: 10.00
A83: Субпродукты | L83: 0.00 | M83: 0.00
A84: Примечание: расход хлеба пшеничного с учетом расхода сухарей панировочных
B85: Расход продуктов ДОУ
D86: от 3 до 7 лет | K86: брутто
A88: Наименов. прод. | B88: 1 | C88: 2 | D88: 3 | E88: 4 | F88: 5 | G88: 6 | H88: 7 | I88: 8 | J88: 9 | K88: 10 | L88: Кол-во | M88: Среднее
A90: Сахар | B90: 28.58 | C90: 28.70 | D90: 19.15 | E90: 30.80 | F90: 19.80 | G90: 24.34 | H90: 31.40 | I90: 25.00 | J90: 31.50 | K90: 20.70 | L90: 259.97 | M90: 26.00
A91: Заварка | B91: 0.60 | C91: 0.35 | D91: 0.60 | E91: 0.00 | F91: 0.30 | G91: 0.60 | H91: 0.35 | I91: 0.30 | J91: 0.30 | K91: 0.30 | L91: 3.70 | M91: 0.37
A92: Яйцо | B92: 1.00 | C92: 21.88 | D92: 2.40 | E92: 7.14 | F92: 106.50 | G92: 6.33 | H92: 16.50 | I92: 2.58 | J92: 10.50 | K92: 112.50 | L92: 287.33 | M92: 28.73
A93: Дрожжи сухие | B93: 0.20 | C93: 0.00 | D93: 0.20 | E93: 0.00 | F93: 0.00 | G93: 0.30 | H93: 0.00 | I93: 0.25 | J93: 0.00 | K93: 0.00 | L93: 0.95 | M93: 0.10
A94: Батон нарезной | B94: 30.00 | C94: 30.00 | D94: 30.00 | E94: 30.00 | F94: 30.00 | G94: 30.00 | H94: 30.00 | I94: 30.00 | J94: 30.00 | K94: 30.00 | L94: 300.00 | M94: 30.00
A95: Хлеб пшеничный 1с | B95: 29.00 | C95: 23.00 | D95: 23.00 | E95: 23.00 | F95: 23.00 | G95: 37.40 | H95: 23.00 | I95: 23.00 | J95: 23.00 | K95: 32.00 | L95: 259.40 | M95: 25.94
A96: Хлеб сельский | B96: 37.50 | C96: 37.50 | D96: 37.50 | E96: 37.50 | F96: 37.50 | G96: 37.50 | H96: 37.50 | I96: 37.50 | J96: 37.50 | K96: 37.50 | L96: 375.00 | M96: 37.50
A97: Мука пшеничная | B97: 36.40 | C97: 8.30 | D97: 32.72 | E97: 0.80 | F97: 0.00 | G97: 26.80 | H97: 0.40 | I97: 36.30 | J97: 40.50 | K97: 15.00 | L97: 197.22 | M97: 19.72
A98: Кисель-концентрат | B98: 0.00 | C98: 0.00 | D98: 0.00 | E98: 0.00 | F98: 0.00 | G98: 0.00 | H98: 0.00 | I98: 0.00 | J98: 0.00 | K98: 0.00 | L98: 0.00 | M98: 0.00
A99: Макаронные изделия | B99: 45.50 | C99: 0.00 | D99: 0.00 | E99: 0.00 | F99: 0.00 | G99: 45.50 | H99: 0.00 | I99: 0.00 | J99: 0.00 | K99: 0.00 | L99: 91.00 | M99: 9.10
A100: Вермишель | B100: 0.00 | C100: 0.00 | D100: 0.00 | E100: 0.00 | F100: 8.00 | G100: 0.00 | H100: 0.00 | I100: 0.00 | J100: 14.00 | K100: 0.00 | L100: 22.00 | M100: 2.20
A101: Крупа рисовая | B101: 0.00 | C101: 33.00 | D101: 0.00 | E101: 5.00 | F101: 38.50 | G101: 0.00 | H101: 0.00 | I101: 0.00 | J101: 45.60 | K101: 25.00 | L101: 147.10 | M101: 14.71
A102: Крупа кукурузная | B102: 0.00 | C102: 0.00 | D102: 0.00 | E102: 0.00 | F102: 0.00 | G102: 0.00 | H102: 0.00 | I102: 0.00 | J102: 0.00 | K102: 0.00 | L102: 0.00 | M102: 0.00
A103: Крупа манная | B103: 23.00 | C103: 1.75 | D103: 0.00 | E103: 11.40 | F103: 0.00 | G103: 0.00 | H103: 10.75 | I103: 20.00 | J103: 0.00 | K103: 0.00 | L103: 66.90 | M103: 6.69
A104: Горох | B104: 0.00 | C104: 0.00 | D104: 0.00 | E104: 0.00 | F104: 0.00 | G104: 20.25 | H104: 0.00 | I104: 0.00 | J104: 0.00 | K104: 0.00 | L104: 20.25 | M104: 2.03
A105: Крупа пшенная | B105: 0.00 | C105: 11.00 | D105: 0.00 | E105: 30.00 | F105: 0.00 | G105: 0.00 | H105: 38.00 | I105: 0.00 | J105: 0.00 | K105: 0.00 | L105: 79.00 | M105: 7.90
A106: Крупа ячневая | B106: 0.00 | C106: 0.00 | D106: 0.00 | E106: 0.00 | F106: 0.00 | G106: 0.00 | H106: 0.00 | I106: 0.00 | J106: 0.00 | K106: 0.00 | L106: 0.00 | M106: 0.00
A107: Полба | B107: 0.00 | C107: 0.00 | D107: 0.00 | E107: 0.00 | F107: 25.00 | G107: 0.00 | H107: 0.00 | I107: 0.00 | J107: 0.00 | K107: 0.00 | L107: 25.00 | M107: 2.50
A108: Крупа перловая | B108: 8.00 | C108: 0.00 | D108: 0.00 | E108: 0.00 | F108: 0.00 | G108: 0.00 | H108: 0.00 | I108: 0.00 | J108: 0.00 | K108: 25.50 | L108: 33.50 | M108: 3.35
A109: Крупа геркулесовая | B109: 0.00 | C109: 0.00 | D109: 25.00 | E109: 0.00 | F109: 0.00 | G109: 25.00 | H109: 0.00 | I109: 0.00 | J109: 0.00 | K109: 0.00 | L109: 50.00 | M109: 5.00
A110: Крупа пшеничная | B110: 0.00 | C110: 0.00 | D110: 0.00 | E110: 0.00 | F110: 0.00 | G110: 0.00 | H110: 0.00 | I110: 0.00 | J110: 0.00 | K110: 0.00 | L110: 0.00 | M110: 0.00
A111: Крупа гречневая | B111: 0.00 | C111: 0.00 | D111: 32.50 | E111: 0.00 | F111: 0.00 | G111: 0.00 | H111: 0.00 | I111: 46.30 | J111: 0.00 | K111: 0.00 | L111: 78.80 | M111: 7.88
A112: Картофель | B112: 196.84 | C112: 201.63 | D112: 101.21 | E112: 180.34 | F112: 79.80 | G112: 170.24 | H112: 175.03 | I112: 211.47 | J112: 31.92 | K112: 0.00 | L112: 1348.48 | M112: 134.85
A113: Морковь | B113: 24.75 | C113: 72.50 | D113: 29.00 | E113: 44.75 | F113: 43.47 | G113: 52.12 | H113: 44.00 | I113: 24.72 | J113: 85.50 | K113: 31.25 | L113: 452.06 | M113: 45.21
A114: Лук репчатый | B114: 19.29 | C114: 26.81 | D114: 24.16 | E114: 16.02 | F114: 19.01 | G114: 23.21 | H114: 25.27 | I114: 30.63 | J114: 19.02 | K114: 22.31 | L114: 225.73 | M114: 22.57
A115: Свекла | B115: 0.00 | C115: 64.60 | D115: 69.36 | E115: 0.00 | F115: 0.00 | G115: 0.00 | H115: 64.60 | I115: 43.52 | J115: 0.00 | K115: 45.28 | L115: 287.36 | M115: 28.74
A116: Капуста свежая | B116: 66.25 | C116: 0.00 | D116: 71.50 | E116: 50.00 | F116: 43.75 | G116: 50.62 | H116: 30.00 | I116: 20.00 | J116: 50.00 | K116: 0.00 | L116: 382.12 | M116: 38.21
A117: Икра кабачковая | B117: 0.00 | C117: 0.00 | D117: 0.00 | E117: 0.00 | F117: 0.00 | G117: 0.00 | H117: 0.00 | I117: 0.00 | J117: 0.00 | K117: 0.00 | L117: 0.00 | M117: 0.00
A118: Огурцы соленые | B118: 21.84 | C118: 0.00 | D118: 0.00 | E118: 0.00 | F118: 0.00 | G118: 0.00 | H118: 0.00 | I118: 0.00 | J118: 0.00 | K118: 0.00 | L118: 21.84 | M118: 2.18
A119: Помидоры свежие | B119: 0.00 | C119: 0.00 | D119: 48.45 | E119: 51.00 | F119: 0.00 | G119: 0.00 | H119: 0.00 | I119: 48.45 | J119: 51.00 | K119: 0.00 | L119: 198.90 | M119: 19.89
A120: Огурцы свежие | B120: 0.00 | C120: 0.00 | D120: 0.00 | E120: 0.00 | F120: 0.00 | G120: 0.00 | H120: 0.00 | I120: 0.00 | J120: 0.00 | K120: 0.00 | L120: 0.00 | M120: 0.00
A121: Соус Переменка | B121: 0.00 | C121: 0.00 | D121: 0.00 | E121: 0.00 | F121: 0.00 | G121: 0.00 | H121: 0.00 | I121: 0.00 | J121: 0.00 | K121: 0.00 | L121: 0.00 | M121: 0.00
A122: Томат-паста | B122: 1.00 | C122: 0.00 | D122: 4.00 | E122: 2.00 | F122: 0.00 | G122: 0.00 | H122: 1.00 | I122: 1.00 | J122: 0.00 | K122: 0.00 | L122: 9.00 | M122: 0.90
A123: Масло сливочное | B123: 12.60 | C123: 15.90 | D123: 14.40 | E123: 11.00 | F123: 14.00 | G123: 15.04 | H123: 19.00 | I123: 13.00 | J123: 24.00 | K123: 16.00 | L123: 154.94 | M123: 15.49
A124: Масло растительное | B124: 18.30 | C124: 5.70 | D124: 17.00 | E124: 8.80 | F124: 9.20 | G124: 12.50 | H124: 10.60 | I124: 11.96 | J124: 10.00 | K124: 6.50 | L124: 110.56 | M124: 11.06
A125: Фрукты свежие | B125: 0.00 | C125: 114.00 | D125: 0.00 | E125: 114.00 | F125: 0.00 | G125: 114.00 | H125: 0.00 | I125: 114.00 | J125: 0.00 | K125: 114.00 | L125: 570.00 | M125: 57.00
A126: Яблоки | B126: 19.00 | C126: 40.80 | D126: 0.00 | E126: 24.45 | F126: 53.63 | G126: 16.60 | H126: 24.45 | I126: 40.80 | J126: 0.00 | K126: 15.20 | L126: 234.93 | M126: 23.49
A127: крыжовник зам. | B127: 0.00 | C127: 0.00 | D127: 0.00 | E127: 0.00 | F127: 0.00 | G127: 0.00 | H127: 0.00 | I127: 0.00 | J127: 0.00 | K127: 0.00 | L127: 0.00 | M127: 0.00
A128: Лимон | B128: 0.00 | C128: 5.10 | D128: 0.00 | E128: 0.00 | F128: 0.00 | G128: 0.00 | H128: 5.10 | I128: 0.00 | J128: 0.00 | K128: 0.00 | L128: 10.20 | M128: 1.02
A129: Ягодная смесь зам. | B129: 0.00 | C129: 0.00 | D129: 0.00 | E129: 0.00 | F129: 0.00 | G129: 0.00 | H129: 0.00 | I129: 0.00 | J129: 0.00 | K129: 0.00 | L129: 0.00 | M129: 0.00
A130: Сок | B130: 180.00 | C130: 0.00 | D130: 180.00 | E130: 0.00 | F130: 180.00 | G130: 0.00 | H130: 180.00 | I130: 0.00 | J130: 180.00 | K130: 0.00 | L130: 900.00 | M130: 90.00
A131: Курага | B131: 0.00 | C131: 0.00 | D131: 0.00 | E131: 0.00 | F131: 0.00 | G131: 0.00 | H131: 0.00 | I131: 0.00 | J131: 0.00 | K131: 0.00 | L131: 0.00 | M131: 0.00
A132: Сухофрукты | B132: 18.36 | C132: 0.00 | D132: 0.00 | E132: 18.36 | F132: 0.00 | G132: 0.00 | H132: 18.36 | I132: 0.00 | J132: 0.00 | K132: 18.36 | L132: 73.44 | M132: 7.34
A133: Урюк | B133: 7.20 | C133: 0.00 | D133: 15.30 | E133: 0.00 | F133: 0.00 | G133: 22.50 | H133: 0.00 | I133: 0.00 | J133: 15.30 | K133: 0.00 | L133: 60.30 | M133: 6.03
A134: повидло фруктовое | B134: 0.00 | C134: 20.00 | D134: 23.50 | E134: 20.00 | F134: 0.00 | G134: 0.00 | H134: 20.00 | I134: 0.00 | J134: 0.00 | K134: 0.00 | L134: 83.50 | M134: 8.35
A135: Шиповник порошок | B135: 0.00 | C135: 0.00 | D135: 0.00 | E135: 3.00 | F135: 0.00 | G135: 0.00 | H135: 0.00 | I135: 0.00 | J135: 3.00 | K135: 0.00 | L135: 6.00 | M135: 0.60
A136: Молоко | B136: 100.00 | C136: 322.96 | D136: 148.00 | E136: 346.36 | F136: 218.00 | G136: 158.00 | H136: 324.96 | I136: 193.00 | J136: 226.46 | K136: 218.00 | L136: 2255.74 | M136: 225.57
A137: Кефир | B137: 0.00 | C137: 0.00 | D137: 0.00 | E137: 0.00 | F137: 123.60 | G137: 0.00 | H137: 0.00 | I137: 0.00 | J137: 0.00 | K137: 123.60 | L137: 247.20 | M137: 24.72
A138: Ряженка | B138: 0.00 | C138: 0.00 | D138: 123.60 | E138: 0.00 | F138: 0.00 | G138: 123.60 | H138: 0.00 | I138: 0.00 | J138: 0.00 | K138: 0.00 | L138: 247.20 | M138: 24.72
A139: Катык | B139: 123.60 | C139: 0.00 | D139: 0.00 | E139: 0.00 | F139: 0.00 | G139: 0.00 | H139: 0.00 | I139: 123.60 | J139: 0.00 | K139: 0.00 | L139: 247.20 | M139: 24.72
A140: Молоко сгущенное | B140: 0.00 | C140: 0.00 | D140: 0.00 | E140: 0.00 | F140: 0.00 | G140: 0.00 | H140: 0.00 | I140: 0.00 | J140: 0.00 | K140: 0.00 | L140: 0.00 | M140: 0.00
A141: Сметана | B141: 5.00 | C141: 3.90 | D141: 15.00 | E141: 19.28 | F141: 0.00 | G141: 0.00 | H141: 11.00 | I141: 10.00 | J141: 6.00 | K141: 0.00 | L141: 70.18 | M141: 7.02
A142: Творог | B142: 0.00 | C142: 98.80 | D142: 0.00 | E142: 109.28 | F142: 0.00 | G142: 0.00 | H142: 140.00 | I142: 0.00 | J142: 85.00 | K142: 0.00 | L142: 433.08 | M142: 43.31
A143: Говядина | B143: 0.00 | C143: 0.00 | D143: 0.00 | E143: 0.00 | F143: 0.00 | G143: 0.00 | H143: 0.00 | I143: 0.00 | J143: 52.00 | K143: 0.00 | L143: 52.00 | M143: 5.20
A144: Фарш из говядины | B144: 48.00 | C144: 17.10 | D144: 0.00 | E144: 38.00 | F144: 17.10 | G144: 17.10 | H144: 0.00 | I144: 118.10 | J144: 0.00 | K144: 41.70 | L144: 297.10 | M144: 29.71
A145: Цыплята | B145: 119.97 | C145: 0.00 | D145: 0.00 | E145: 33.85 | F145: 104.58 | G145: 170.74 | H145: 33.85 | I145: 0.00 | J145: 0.00 | K145: 81.58 | L145: 544.57 | M145: 54.46
A146: индейка филе | B146: 0.00 | C146: 0.00 | D146: 67.00 | E146: 0.00 | F146: 0.00 | G146: 0.00 | H146: 0.00 | I146: 0.00 | J146: 0.00 | K146: 0.00 | L146: 67.00 | M146: 6.70
A147: фарш птицы | B147: 0.00 | C147: 0.00 | D147: 0.00 | E147: 0.00 | F147: 0.00 | G147: 0.00 | H147: 0.00 | I147: 0.00 | J147: 0.00 | K147: 0.00 | L147: 0.00 | M147: 0.00
A148: Сыр | B148: 0.00 | C148: 7.14 | D148: 0.00 | E148: 7.14 | F148: 0.00 | G148: 7.14 | H148: 0.00 | I148: 7.14 | J148: 0.00 | K148: 7.14 | L148: 35.70 | M148: 3.57
A149: фарш из минтая | B149: 0.00 | C149: 52.50 | D149: 0.00 | E149: 0.00 | F149: 0.00 | G149: 0.00 | H149: 52.50 | I149: 0.00 | J149: 0.00 | K149: 0.00 | L149: 105.00 | M149: 10.50
A150: Кофейный напиток | B150: 0.00 | C150: 0.00 | D150: 0.00 | E150: 1.50 | F150: 0.00 | G150: 0.00 | H150: 1.50 | I150: 0.00 | J150: 0.00 | K150: 1.50 | L150: 4.50 | M150: 0.45
A151: Какао-порошок | B151: 0.00 | C151: 1.50 | D151: 0.00 | E151: 0.00 | F151: 1.50 | G151: 0.00 | H151: 0.00 | I151: 1.50 | J151: 0.00 | K151: 0.00 | L151: 4.50 | M151: 0.45
A152: печенье | B152: 0.00 | C152: 0.00 | D152: 0.00 | E152: 0.00 | F152: 30.00 | G152: 0.00 | H152: 0.00 | I152: 0.00 | J152: 20.00 | K152: 30.00 | L152: 80.00 | M152: 8.00
A153: крекер | B153: 0.00 | C153: 10.00 | D153: 0.00 | E153: 0.00 | F153: 0.00 | G153: 0.00 | H153: 10.00 | I153: 0.00 | J153: 0.00 | K153: 0.00 | L153: 20.00 | M153: 2.00
A154: Соль | B154: 5.20 | C154: 3.50 | D154: 5.20 | E154: 3.70 | F154: 3.90 | G154: 4.50 | H154: 4.30 | I154: 6.20 | J154: 3.70 | K154: 4.30 | L154: 44.50 | M154: 4.45
A155: Крахмал | B155: 0.00 | C155: 0.00 | D155: 0.00 | E155: 0.00 | F155: 0.00 | G155: 0.00 | H155: 0.00 | I155: 0.00 | J155: 0.00 | K155: 0.00 | L155: 0.00 | M155: 0.00
A156: Сухари панировочные | B156: 0.00 | C156: 5.00 | D156: 0.00 | E156: 0.00 | F156: 0.00 | G156: 6.00 | H156: 11.00 | I156: 2.00 | J156: 0.00 | K156: 5.80 | L156: 29.80 | M156: 2.98
A157: Крупы, бобовые | B157: 31.00 | C157: 45.75 | D157: 57.50 | E157: 46.40 | F157: 63.50 | G157: 45.25 | H157: 48.75 | I157: 66.30 | J157: 45.60 | K157: 50.50 | L157: 500.55 | M157: 50.06
A158: Овощи разные | B158: 133.13 | C158: 163.91 | D158: 246.47 | E158: 163.77 | F158: 106.23 | G158: 125.95 | H158: 164.87 | I158: 168.32 | J158: 205.52 | K158: 98.84 | L158: 1577.01 | M158: 157.70
A159: Фрукты | B159: 19.00 | C159: 159.90 | D159: 0.00 | E159: 138.45 | F159: 53.63 | G159: 130.60 | H159: 29.55 | I159: 154.80 | J159: 0.00 | K159: 129.20 | L159: 815.13 | M159: 81.51
A160: Фрукты сухие | B160: 25.56 | C160: 20.00 | D160: 38.80 | E160: 38.36 | F160: 0.00 | G160: 22.50 | H160: 38.36 | I160: 0.00 | J160: 15.30 | K160: 18.36 | L160: 217.24 | M160: 21.72
A161: Молочные прод. | B161: 223.60 | C161: 322.96 | D161: 271.60 | E161: 346.36 | F161: 341.60 | G161: 281.60 | H161: 324.96 | I161: 316.60 | J161: 226.46 | K161: 341.60 | L161: 2997.34 | M161: 299.73
A162: птица | B162: 119.97 | C162: 0.00 | D162: 67.00 | E162: 33.85 | F162: 104.58 | G162: 170.74 | H162: 33.85 | I162: 0.00 | J162: 0.00 | K162: 81.58 | L162: 611.57 | M162: 61.16
A163: Говядина | B163: 48.00 | C163: 17.10 | D163: 0.00 | E163: 38.00 | F163: 17.10 | G163: 17.10 | H163: 0.00 | I163: 118.10 | J163: 52.00 | K163: 41.70 | L163: 349.10 | M163: 34.91
A164: Макаронные изделия | B164: 45.50 | C164: 0.00 | D164: 0.00 | E164: 0.00 | F164: 8.00 | G164: 45.50 | H164: 0.00 | I164: 0.00 | J164: 14.00 | K164: 0.00 | L164: 113.00 | M164: 11.30
A165: Хлеб пшеничный | B165: 59.00 | C165: 53.00 | D165: 53.00 | E165: 53.00 | F165: 53.00 | G165: 67.40 | H165: 53.00 | I165: 53.00 | J165: 53.00 | K165: 62.00 | L165: 559.40 | M165: 55.94
A166: Кондитерские изделия | B166: 0.00 | C166: 10.00 | D166: 0.00 | E166: 0.00 | F166: 30.00 | G166: 0.00 | H166: 10.00 | I166: 0.00 | J166: 20.00 | K166: 30.00 | L166: 100.00 | M166: 10.00

Sheet 3-7 лет Послед
A1: "Согласовано" | E1: "Утверждаю"
A2: ________________________ | E2: Заместитель генерального директора по организации питания АО "Департамент продовольствия и социального питания г. Казани"
A3: __________________________ | E3: __________________А.К. Агапова
E4: __________________2022г
C5: Примерное 10-дневное меню
C6: для организации питания детей в дошкольных образовательных учреждениях
C7: от 3-7 лет с 7-12 часовым пребыванием
A8: День 1 - ый
A9: Прием пищи | C9: Выход блюда | D9: Пищевые вещества (г) | G9: Энергетическая | H9: № рецептуры
A10: Наименование блюд | G10: ценность
D11: белки | E11: жиры | F11: угл-ды | G11: Ккал
B12: ЗАВТРАК
A13: Каша манная молочная с маслом | C13: 200/5 | D13: 10.00 | E13: 10.00 | F13: 24.50 | G13: 228.00 | H13: ТТК №4
A14: Чай с сахаром | C14: 180/5 | D14: 0.06 | E14: 0.02 | F14: 4.99 | G14: 20.38 | H14: № 411 Дели2016
A15: Бутерброд с маслом сливочным | C15: 30/5 | D15: 2.30 | E15: 4.50 | F15: 15.40 | G15: 111.00 | H15: №1 Дели2010
A16: Итого: | C16: 425 | D16: =SUM(D12:D15) -> 12.36 | E16: =SUM(E12:E15) -> 14.52 | F16: =SUM(F12:F15) -> 44.89 | G16: =SUM(G12:G15) -> 359.38
A17: Сок | C17: 180 | D17: 0.60 | E17: 0.06 | F17: 22.00 | G17: 90.90 | H17: №418Дели2016
A18: абрикосовый
A19: Итого: | C19: =SUM(C17:C17) -> 180 | D19: =SUM(D17) -> 0.60 | E19: =SUM(E17) -> 0.06 | F19: =SUM(F17) -> 22.00 | G19: =SUM(G17) -> 90.90
C20: 605 | D20: =D16+D19 -> 12.96 | E20: =E16+E19 -> 14.58 | F20: =F16+F19 -> 66.89 | G20: =G16+G19 -> 450.28
B21: ОБЕД
A22: Салат из капусты с яблоками | C22: 50 | D22: 1.00 | E22: 2.30 | F22: 5.00 | G22: 45.00 | H22: №7 Партнер 2014
A23: Рассольник ленинградский с курицей, со сметаной | C23: 200/15/5 | D23: 4.56 | E23: 7.50 | F23: 12.64 | G23: 136.30 | H23: №82 Дели 2016
A24: Тефтели из говядины с соусом томатным | C24: 70/10 | D24: 6.2 | E24: 6.5 | F24: 5 | G24: 103 | H24: ТТК № 1152 от 09.10.2020 и №364 С-Петербург 2008
A25: Макароны отварные | C25: 130 | D25: 4.80 | E25: 3.60 | F25: 29.40 | G25: 169.20 | H25: №218 Дели 2016
A26: Компот из сухофруктов | C26: 180 | D26: 0.7 | E26: 0.0 | F26: 18.0 | G26: 75 | H26: №394, Дели 2016
A27: Хлеб сельский | C27: 37.5 | D27: 1.8 | E27: 0.4 | F27: 18 | G27: 82.5
A28: Итого: | C28: 697.5 | D28: =SUM(D21:D27) -> 19.06 | E28: =SUM(E21:E27) -> 20.34 | F28: =SUM(F21:F27) -> 88.04 | G28: =SUM(G21:G27) -> 611.20
B29: ПОЛДНИК
A30: Булочка Домашняя | C30: 50 | D30: 4.90 | E30: 5.00 | F30: 28.00 | G30: 177.00 | H30: №258 Партнер г. Уфа 2014
A31: Катык | C31: 120 | D31: 3.77 | E31: 3 | F31: 5 | G31: 62.1 | H31: №401Дели2010
A32: Рагу с курицей | C32: 40/120 | D32: 6.00 | E32: 10.00 | F32: 16.00 | G32: 178.00 | H32: ТТК №63
A33: Чай фруктовый | C33: 180/7 | D33: 0.18 | E33: 0.09 | F33: 17.00 | G33: 69.50 | H33: ТТК №56
A34: Хлеб пшеничный 1с | C34: 23 | D34: 1.80 | E34: 0.23 | F34: 11.30 | G34: 54.50
A35: Итого: | C35: 540 | D35: =SUM(D30:D34) -> 16.65 | E35: =SUM(E30:E34) -> 18.32 | F35: =SUM(F30:F34) -> 77.30 | G35: =SUM(G30:G34) -> 541.10
A36: ВСЕГО: | C36: =C16+C19+C28+C35 -> 1842.5 | D36: 48.67 | E36: 53.24 | F36: 232.23 | G36: 1602.58
A38: День 2- ой
A39: Прием пищи | C39: Выход блюда | D39: Пищевые вещества (г) | G39: Энергетическая | H39: № рецептуры
A40: Наименование блюд | G40: ценность
D41: белки | E41: жиры | F41: угл-ды | G41: Ккал
B42: ЗАВТРАК
A43: Каша "Дружба" молочная с маслом | C43: 200/5 | D43: 5.20 | E43: 5.80 | F43: 25.20 | G43: 173.80 | H43: ТТК №7
A44: Какао с молоком | C44: 180 | D44: 2.42 | E44: 2.58 | F44: 13.61 | G44: 87.30 | H44: №272 Парнер г. Уфа 2014
A45: Бутерброд с сыром, маслом | C45: 30/7/3 | D45: 4.80 | E45: 7.20 | F45: 15.40 | G45: 146.00 | H45: №3 Дели2010
A46: Итого: | C46: 425 | D46: =SUM(D42:D45) -> 12.42 | E46: =SUM(E42:E45) -> 15.58 | F46: =SUM(F42:F45) -> 54.21 | G46: =SUM(G42:G45) -> 407.10
A47: Фрукты свежие | C47: 100 | D47: 1.00 | E47: 0.00 | F47: 8.10 | G47: 36.40 | H47: № 368 Дели 2010
A48: апельсин
A49: Итого: | C49: =SUM(C47) -> 100 | D49: 1.00 | E49: 0.00 | F49: 8.10 | G49: 36.40
C50: 525 | D50: =D46+D49 -> 13.42 | E50: =E46+E49 -> 15.58 | F50: =F46+F49 -> 62.31 | G50: =G46+G49 -> 443.50
B51: ОБЕД
A52: Салат из свеклы | C52: 50 | D52: 0.60 | E52: 2.50 | F52: 4.20 | G52: 42.00 | H52: №34, Дели2016
A53: Суп картофельный с клецками с мясными фрикадельками | C53: 200/15 | D53: 3.60 | E53: 7.80 | F53: 25.60 | G53: 187.00 | H53: №38 Пермь2001
A54: Биточки рубленые из рыбы | C54: 70 | D54: 9.75 | E54: 7.80 | F54: 6.15 | G54: 133.80 | H54: ТТК №3Д
A55: Пюре Картофельное | C55: 130 | D55: 3.70 | E55: 4.44 | F55: 25.00 | G55: 155.00 | H55: №137 Партнер 2014
A56: Компот из свежих яблок | C56: 180 | D56: 0.10 | E56: 0.10 | F56: 11.80 | G56: 48.50 | H56: № 390 Дели 2016
A57: Хлеб сельский | C57: 37.5 | D57: 1.8 | E57: 0.4 | F57: 18 | G57: 82.5
A58: Итого: | C58: 682.5 | D58: =SUM(D51:D57) -> 19.55 | E58: =SUM(E51:E57) -> 23.04 | F58: =SUM(F51:F57) -> 90.75 | G58: =SUM(G51:G57) -> 648.80
B59: ПОЛДНИК
A60: Кондитерские изделия | C60: 10 | D60: 3.00 | E60: 3.00 | F60: 16.00 | G60: 103.00
A61: крекер
A62: Молоко кипяченое | C62: 120 | D62: 3.40 | E62: 3.00 | F62: 5.70 | G62: 63.40 | H62: №419 Дели2016
A63: Салат из моркови | C63: 50 | D63: 0.75 | E63: 0.06 | F63: 8.50 | G63: 37.00 | H63: №42 Дели2016г
A64: Пудинг из творога с рисом с повидлом | C64: 150 | D64: 7.50 | E64: 12.00 | F64: 26.00 | G64: 242.00 | H64: № 250 Дели 2016
A65: Чай с сахаром и лимоном | C65: 180/5/5 | D65: 0.12 | E65: 0.01 | F65: 10.20 | G65: 41.40 | H65: №393Дели2010
A66: Хлеб пшеничный 1с | C66: 23 | D66: 1.80 | E66: 0.23 | F66: 11.30 | G66: 54.50
A67: Итого: | C67: 543 | D67: =SUM(D59:D66) -> 16.57 | E67: =SUM(E59:E66) -> 18.30 | F67: =SUM(F59:F66) -> 77.70 | G67: =SUM(G59:G66) -> 541.30
A68: ВСЕГО: | C68: =C46+C49+C58+C67 -> 1750.5 | D68: 49.54 | E68: 56.92 | F68: 230.76 | G68: 1633.60
A70: День 3 - ий
A71: Прием пищи | C71: Выход блюда | D71: Пищевые вещества (г) | G71: Энергетическая | H71: № рецептуры
A72: Наименование блюд | G72: ценность
D73: белки | E73: жиры | F73: угл-ды | G73: Ккал
B74: ЗАВТРАК
A75: Каша Геркулесовая молочная с маслом | C75: 200/5 | D75: 6.70 | E75: 7.50 | F75: 22.00 | G75: 182.30 | H75: ТТК №5
A76: Чай с молоком,сахаром | C76: 180/5 | D76: 2.60 | E76: 2.30 | F76: 14.30 | G76: 89.00 | H76: № 394 Дели2010
A77: Бутерброд с маслом сливочным | C77: 30/5 | D77: 2.30 | E77: 4.50 | F77: 15.40 | G77: 111.00 | H77: №1 Дели2010
A78: Итого: | C78: 425 | D78: =SUM(D75:D77) -> 11.60 | E78: =SUM(E75:E77) -> 14.30 | F78: =SUM(F75:F77) -> 51.70 | G78: =SUM(G75:G77) -> 382.30
A79: Сок | C79: 180 | D79: 1.20 | E79: 0.00 | F79: 12.00 | G79: 49.60 | H79: №418Дели2016
A80: яблочно-абрикосовый
A81: Итого: | C81: =SUM(C79) -> 180 | D81: 1.20 | E81: 0.00 | F81: 12.00 | G81: 49.60
C82: 605 | D82: =D78+D81 -> 12.80 | E82: =E78+E81 -> 14.30 | F82: =F78+F81 -> 63.70 | G82: =G78+G81 -> 431.90
B83: ОБЕД
A84: Салат из свежих помидор | C84: 50 | D84: 0.56 | E84: 3.10 | F84: 2.33 | G84: 39.50 | H84: №14 Дели2016
A85: Свекольник со сметаной | C85: 200/6 | D85: 3.16 | E85: 5.40 | F85: 8.14 | G85: 94.00 | H85: №35,сб Пермь2001
A86: Гуляш из индейки | C86: 45/45 | D86: 7.56 | E86: 8.70 | F86: 24.60 | G86: 207.00 | H86: ТТК №61
A87: Каша гречневая вязкая | C87: 130/3 | D87: 4.90 | E87: 3.50 | F87: 21.00 | G87: 135.10 | H87: №182,Дели 2016
A88: Напиток из урюка | C88: 180 | D88: 0.6 | E88: 0.0 | F88: 15.0 | G88: 63 | H88: ТТК №68
A89: Хлеб сельский | C89: 37.5 | D89: 1.8 | E89: 0.4 | F89: 18 | G89: 82.5
A90: Итого: | C90: 696.5 | D90: =SUM(D83:D89) -> 18.58 | E90: =SUM(E83:E89) -> 21.13 | F90: =SUM(F83:F89) -> 89.07 | G90: =SUM(G83:G89) -> 620.60
B91: ПОЛДНИК
A92: Ватрушка с повидлом | C92: 50 | D92: 7.8 | E92: 8.00 | F92: 43.00 | G92: 275 | H92: №441 Дели 2016
A93: Ряженка | C93: 120 | D93: 4.30 | E93: 3.00 | F93: 5.00 | G93: 64.00 | H93: №401 Дели2010
A94: Рагу из овощей | C94: 130 | D94: 2.00 | E94: 6.00 | F94: 13.65 | G94: 117.00 | H94: №362 Дели2016
A95: Хлеб пшеничный 1с | C95: 23 | D95: 1.80 | E95: 0.23 | F95: 11.30 | G95: 54.50
A96: Чай с сахаром | C96: 180/5 | D96: 0.06 | E96: 0.02 | F96: 4.99 | G96: 20.38 | H96: № 411 Дели2016
A97: Итого: | C97: 508 | D97: =SUM(D91:D96) -> 15.96 | E97: =SUM(E91:E96) -> 17.25 | F97: =SUM(F91:F96) -> 77.94 | G97: =SUM(G91:G96) -> 530.88
A98: ВСЕГО: | C98: =C78+C81+C90+C97 -> 1809.5 | D98: 47.34 | E98: 52.68 | F98: 230.71 | G98: 1583.38
A100: День 4 - ый
A101: Прием пищи | C101: Выход блюда | D101: Пищевые вещества (г) | G101: Энергетическая | H101: № рецептуры
A102: Наименование блюд | G102: ценность
D103: белки | E103: жиры | F103: угл-ды | G103: Ккал
B104: ЗАВТРАК
A105: Каша пшенная молочная с маслом | C105: 200/5 | D105: 8.00 | E105: 6.60 | F105: 26.00 | G105: 195.40 | H105: ТТК №6
A106: Кофейный напиток с молоком | C106: 180 | D106: 1.22 | E106: 1.34 | F106: 11.94 | G106: 65.00 | H106: №270 Партнер г. Уфа 2014
A107: Бутерброд с сыром, маслом | C107: 30/7/3 | D107: 4.80 | E107: 7.20 | F107: 15.40 | G107: 146.00 | H107: №3 Дели2010
A108: Итого: | C108: 425 | D108: =SUM(D104:D107) -> 14.02 | E108: =SUM(E104:E107) -> 15.14 | F108: =SUM(F104:F107) -> 53.34 | G108: =SUM(G104:G107) -> 406.40
A109: Фрукты свежие | C109: 100 | D109: 0.30 | E109: 0.43 | F109: 14.00 | G109: 61.00 | H109: № 386 Дели 2016
A110: груша
A111: Итого: | C111: =SUM(C109) -> 100 | D111: 0.30 | E111: 0.43 | F111: 14.00 | G111: 61.00
C112: 525 | D112: =D108+D111 -> 14.32 | E112: =E108+E111 -> 15.57 | F112: =F108+F111 -> 67.34 | G112: =G108+G111 -> 467.40
B113: ОБЕД
A114: Помидоры свежие порционно | C114: 50 | D114: 0.55 | E114: 0.10 | F114: 1.90 | G114: 12.00 | H114: стр563,сб1996
A115: Щи со свежей капустой, картофелем, с курицей и сметаной | C115: 200/15/5 | D115: 4.60 | E115: 8.00 | F115: 17.00 | G115: 158.50 | H115: №73 Дели 2016
A116: Тефтели из говядины с рисом и соусом | C116: 50/20 | D116: 7.50 | E116: 6.90 | F116: 11.50 | G116: 138.00 | H116: №285 и №364 С-Петербург 2008
A117: Пюре Картофельное | C117: 130 | D117: 3.70 | E117: 4.44 | F117: 25.00 | G117: 155.00 | H117: №137 Партнер 2014
A118: Компот из сухофруктов | C118: 180 | D118: 0.7 | E118: 0.0 | F118: 18.0 | G118: 75 | H118: №394, Дели 2016
A119: Хлеб сельский | C119: 37.5 | D119: 1.8 | E119: 0.4 | F119: 18 | G119: 82.5
A120: Итого: | C120: 687.5 | D120: =SUM(D114:D119) -> 18.85 | E120: =SUM(E114:E119) -> 19.88 | F120: =SUM(F114:F119) -> 91.40 | G120: =SUM(G114:G119) -> 621.20
B121: ПОЛДНИК
A122: Кондитерские изделия | C122: 20 | D122: 1.20 | E122: 0.80 | F122: 30.00 | G122: 135.00
A123: печенье
A124: Молоко кипяченое | C124: 120 | D124: 3.40 | E124: 3.00 | F124: 5.70 | G124: 63.40 | H124: №419 Дели2016
A125: Салат из моркови с яблоками | C125: 50 | D125: 0.37 | E125: 2.00 | F125: 4.30 | G125: 37.00 | H125: №41Дели2016
A126: Суфле из творога с повидлом | C126: 150/20 | D126: 9.00 | E126: 12.50 | F126: 24.00 | G126: 244.50 | H126: ТТК №567
A127: Напиток шиповника | C127: 180/5 | D127: 0.6 | E127: 0.3 | F127: 6.5 | G127: 31.1 | H127: ТТК № 59
A128: Хлеб пшеничный 1с | C128: 23 | D128: 1.80 | E128: 0.23 | F128: 11.30 | G128: 54.50
A129: Итого: | C129: 568 | D129: =SUM(D121:D128) -> 16.37 | E129: =SUM(E121:E128) -> 18.83 | F129: =SUM(F121:F128) -> 81.80 | G129: =SUM(G121:G128) -> 565.50
A130: ВСЕГО: | C130: =C108+C111+C120+C129 -> 1780.5 | D130: 49.54 | E130: 54.28 | F130: 240.54 | G130: 1654.10
A133: День 5 - ый
A134: Прием пищи | C134: Выход блюда | D134: Пищевые вещества (г) | G134: Энергетическая | H134: № рецептуры
A135: Наименование блюд | G135: ценность
D136: белки | E136: жиры | F136: угл-ды | G136: Ккал
B137: ЗАВТРАК
A138: Каша полбяная молочная с маслом | C138: 200/5 | D138: 7.30 | E138: 7.42 | F138: 22.80 | G138: 187.20 | H138: ТТК №1
A139: Какао с молоком | C139: 180 | D139: 2.42 | E139: 2.58 | F139: 13.61 | G139: 87.30 | H139: №272 Парнер г. Уфа 2014
A140: Бутерброд с маслом сливочным | C140: 30/5 | D140: 2.30 | E140: 4.50 | F140: 15.40 | G140: 111.00 | H140: №1 Дели2010
A141: Итого: | C141: 420 | D141: =SUM(D137:D140) -> 12.02 | E141: =SUM(E137:E140) -> 14.50 | F141: =SUM(F137:F140) -> 51.81 | G141: =SUM(G137:G140) -> 385.50
A142: Сок | C142: 180 | D142: 0.87 | E142: 0.25 | F142: 20.00 | G142: 85.00 | H142: №418Дели2016
A143: вишневый
A144: Итого: | C144: =SUM(C142) -> 180 | D144: =SUM(D142:D143) -> 0.87 | E144: =SUM(E142:E143) -> 0.25 | F144: 16.50 | G144: 71.00
C145: 600 | D145: =D141+D144 -> 12.89 | E145: =E141+E144 -> 14.75 | F145: =F141+F144 -> 68.31 | G145: =G141+G144 -> 456.50
B146: ОБЕД
A147: Салат витаминный | C147: 50 | D147: 0.75 | E147: 2.92 | F147: 7.00 | G147: 57.30 | H147: №15 Партнер 2009
A148: Суп вермишелевый с картофелем и мясными фрикадельками | C148: 200/15 | D148: 4.86 | E148: 5.80 | F148: 15.24 | G148: 132.60 | H148: №88 Дели 2016
A149: Плов из курицы | C149: 160 | D149: 12.3 | E149: 15.1 | F149: 41.2 | G149: 352 | H149: №321 Дели 2016
A150: Компот из свежих яблок | C150: 180 | D150: 0.10 | E150: 0.10 | F150: 11.80 | G150: 48.50 | H150: № 390 Дели 2016
A151: Хлеб сельский | C151: 37.5 | D151: 1.8 | E151: 0.4 | F151: 18 | G151: 82.5
A152: Итого: | C152: 642.5 | D152: =SUM(D146:D151) -> 19.81 | E152: =SUM(E146:E151) -> 24.32 | F152: =SUM(F146:F151) -> 93.24 | G152: =SUM(G146:G151) -> 672.90
B153: ПОЛДНИК
A154: Кондитерские изделия | C154: 30 | D154: 1.40 | E154: 4.20 | F154: 45.32 | G154: 218.80
A155: печенье
A156: Кефир | C156: 120 | D156: 3.50 | E156: 3.00 | F156: 4.80 | G156: 60.20 | H156: №401 Дели2010
A157: Омлет натуральный | C157: 140 | D157: 8.50 | E157: 8.68 | F157: 13.60 | G157: 167.40 | H157: №229 Дели2016
A158: Хлеб пшеничный 1с | C158: 23 | D158: 1.80 | E158: 0.23 | F158: 11.30 | G158: 54.50
A159: Чай с сахаром | C159: 180/5 | D159: 0.06 | E159: 0.02 | F159: 4.99 | G159: 20.38 | H159: № 411 Дели2016
A160: Итого: | C160: 498 | D160: =SUM(D154:D159) -> 15.26 | E160: =SUM(E154:E159) -> 16.13 | F160: =SUM(F154:F159) -> 80.01 | G160: =SUM(G154:G159) -> 521.28
A161: ВСЕГО: | C161: =C141+C144+C152+C160 -> 1740.5 | D161: 47.96 | E161: 55.20 | F161: 241.56 | G161: 1650.68
A163: День 6 - ой
A164: Прием пищи | C164: Выход блюда | D164: Пищевые вещества (г) | G164: Энергетическая | H164: № рецептуры
A165: Наименование блюд | G165: ценность
D166: белки | E166: жиры | F166: угл-ды | G166: Ккал
B167: ЗАВТРАК
A168: Каша Геркулесовая молочная с маслом | C168: 200/5 | D168: 6.70 | E168: 7.50 | F168: 22.00 | G168: 182.30 | H168: ТТК №5
A169: Чай с молоком,сахаром | C169: 180/5 | D169: 2.60 | E169: 2.30 | F169: 14.30 | G169: 89.00 | H169: № 394 Дели2010
A170: Бутерброд с сыром, маслом | C170: 30/7/3 | D170: 4.80 | E170: 7.20 | F170: 15.40 | G170: 146.00 | H170: №3 Дели2010
A171: Итого: | C171: 430 | D171: =SUM(D168:D170) -> 14.10 | E171: =SUM(E168:E170) -> 17.00 | F171: =SUM(F168:F170) -> 51.70 | G171: =SUM(G168:G170) -> 417.30
A172: Фрукты свежие | C172: 100 | D172: 0.40 | E172: 0.40 | F172: 12.00 | G172: 53.20 | H172: № 386 Дели 2016
A173: яблоко
A174: Итого: | C174: =SUM(C172) -> 100 | D174: =SUM(D172:D173) -> 0.40 | E174: =SUM(E172:E173) -> 0.40 | F174: 12.00 | G174: 53.20
C175: 530 | D175: =D171+D174 -> 14.50 | E175: 15.40 | F175: =F171+F174 -> 63.70 | G175: =G171+G174 -> 470.50
B176: ОБЕД
A177: Салат из свежей капусты | C177: 50 | D177: 0.70 | E177: 2.50 | F177: 4.50 | G177: 43.50 | H177: №21, Дели 2016
A178: Суп картофельный с горохом с мясными фрикадельками и гренками | C178: 200/15/10 | D178: 3.25 | E178: 3.00 | F178: 18.00 | G178: 112.00 | H178: ТТК№139
A179: Биточки куриные "Солнышко" | C179: 70 | D179: 8.00 | E179: 10.50 | F179: 6.20 | G179: 152.00 | H179: ТТК №97Д
A180: Макароны отварные | C180: 130 | D180: 4.80 | E180: 3.60 | F180: 29.40 | G180: 169.20 | H180: №218 Дели 2016
A181: Напиток из урюка | C181: 180 | D181: 0.6 | E181: 0.0 | F181: 15.0 | G181: 63 | H181: ТТК №68
A182: Хлеб сельский | C182: 37.5 | D182: 1.8 | E182: 0.4 | F182: 18 | G182: 82.5
A183: Итого: | C183: 692.5 | D183: =SUM(D177:D182) -> 19.15 | E183: =SUM(E177:E182) -> 20.03 | F183: 91.10 | G183: 621.70
B184: ПОЛДНИК
A185: Шафран с яблоками | C185: 50 | D185: 3.42 | E185: 5.5 | F185: 28 | G185: 176 | H185: Сб.нац блюд 1996,акт20
A186: Ряженка | C186: 120 | D186: 4.30 | E186: 3.00 | F186: 5.00 | G186: 64.00 | H186: №401 Дели2010
A187: Рагу с курицей | C187: 40/120 | D187: 6.00 | E187: 10.00 | F187: 16.00 | G187: 178.00 | H187: ТТК №63
A188: Чай фруктовый | C188: 180/7 | D188: 0.18 | E188: 0.09 | F188: 17.00 | G188: 69.50 | H188: ТТК №56
A189: Хлеб пшеничный 1с | C189: 23 | D189: 1.80 | E189: 0.23 | F189: 11.30 | G189: 54.50
A190: Итого: | C190: 540 | D190: =SUM(D184:D189) -> 15.70 | E190: =SUM(E184:E189) -> 18.82 | F190: =SUM(F184:F189) -> 77.30 | G190: =SUM(G184:G189) -> 542.00
A191: ВСЕГО: | C191: =C171+C174+C183+C190 -> 1762.5 | D191: 49.35 | E191: 56.25 | F191: 232.10 | G191: 1634.20
A193: День 7 - ой
A194: Прием пищи | C194: Выход блюда | D194: Пищевые вещества (г) | G194: Энергетическая | H194: № рецептуры
A195: Наименование блюд | G195: ценность
D196: белки | E196: жиры | F196: угл-ды | G196: Ккал
B197: ЗАВТРАК
A198: Каша пшенная молочная с маслом | C198: 200/5 | D198: 8.00 | E198: 6.60 | F198: 26.00 | G198: 194.00 | H198: ТТК №6
A199: Кофейный напиток с молоком | C199: 180 | D199: 1.22 | E199: 1.34 | F199: 11.94 | G199: 65.00 | H199: №270 Партнер г. Уфа 2014
A200: Бутерброд с маслом сливочным | C200: 30/5 | D200: 2.30 | E200: 4.50 | F200: 15.40 | G200: 111.00 | H200: №1 Дели2010
A201: Итого: | C201: 420 | D201: =SUM(D197:D200) -> 11.52 | E201: =SUM(E197:E200) -> 12.44 | F201: =SUM(F197:F200) -> 53.34 | G201: =SUM(G197:G200) -> 370.00
A202: Сок | C202: 180 | D202: 1.30 | E202: 2.00 | F202: 15.00 | G202: 83.00 | H202: №418Дели2016
A203: персик-банан
A204: Итого: | C204: =SUM(C202) -> 180 | D204: =SUM(D202:D203) -> 1.30 | E204: =SUM(E202:E203) -> 2.00 | F204: 15.00 | G204: 83.00
C205: 600 | D205: =D201+D204 -> 12.82 | E205: =E201+E204 -> 14.44 | F205: =F201+F204 -> 68.34 | G205: =G201+G204 -> 453.00
B206: ОБЕД
A207: Салат из свеклы | C207: 50 | D207: 0.60 | E207: 2.50 | F207: 4.20 | G207: 42.00 | H207: №34, Дели2016
... 132 more rows
